Workbook

Sheet MAXIMIZAR EL BENEFICIO
B2: Saldo Inicial | C2: 1000 | E2: % Riesgo (F) | F2: 0.35 | H2: B/R | I2: 4
B4: % ACIERTO | C4: =COUNTIF(E7:E36,"GANANCIA")/C36 -> 0.5 | E4: % FALLO | F4: =COUNTIF(E7:E36,"PÉRDIDA")/C36 -> 0.5 | H4: ESP. MATEM | I4: =(J36-C2)/C36 -> 2437.747833
C6: N° | D6: Saldo Inicial | E6: Resultado | F6: % Riesgo | G6: Monto Riesgo | H6: Me queda | I6: Resultado | J6: Saldo Final | M6: F | N6: SALDO FINAL | R6: VALORES | S6: ALEATORIO | T6: MODIFICADO
C7: 1 | D7: =C2 -> 1000 | E7: =IF(T7=1,"PÉRDIDA","GANANCIA") -> GANANCIA | F7: =$F$2 -> 0.35 | G7: =D7*F7 -> 350 | H7: =D7-G7 -> 650 | I7: =IF(E7="GANANCIA",G7*$I$2,G7*-1) -> 1400 | J7: =IF(E7="PÉRDIDA",H7,H7+I7) -> 2050 | M7: 0.01 | N7: 1339.94 | R7: 2 | S7: =RAND() -> 0.003424241624 | T7: =INDEX($R$7:$R$36,RANK(S7,$S$7:$S$36,1)) -> 2 | V7: =COUNTIF(T7:T36,1) -> 15
C8: 2 | D8: =J7 -> 2050 | E8: =IF(T8=1,"PÉRDIDA","GANANCIA") -> PÉRDIDA | F8: =$F$2 -> 0.35 | G8: =D8*F8 -> 717.5 | H8: =D8-G8 -> 1332.5 | I8: =IF(E8="GANANCIA",G8*$I$2,G8*-1) -> -717.5 | J8: =IF(E8="PÉRDIDA",H8,H8+I8) -> 1332.5 | M8: 0.05 | N8: 3769.829292 | R8: 1 | S8: =RAND() -> 0.9456362076 | T8: =INDEX($R$7:$R$36,RANK(S8,$S$7:$S$36,1)) -> 1 | V8: =COUNTIF(T7:T36,2) -> 15
C9: 3 | D9: =J8 -> 1332.5 | E9: GANANCIA | F9: 0.35 | G9: 466.375 | H9: =D9-G9 -> 866.125 | I9: 1865.5 | J9: 2731.625 | M9: 0.1 | N9: 10538.72146 | R9: 2 | S9: 0.5057110725 | T9: 2
C10: 4 | D10: 2731.625 | E10: PÉRDIDA | F10: 0.35 | G10: 956.06875 | H10: 1775.55625 | I10: -956.06875 | J10: 1775.55625 | M10: 0.15 | N10: 23004.02968 | R10: 1 | S10: 0.3326030577 | T10: 1
C11: 5 | D11: 1775.55625 | E11: GANANCIA | F11: 0.35 | G11: 621.4446875 | H11: 1154.111563 | I11: 2485.77875 | J11: 3639.890313 | M11: 0.2 | N11: 40564.81921 | R11: 1 | S11: 0.613449601 | T11: 2
C12: 6 | D12: 3639.890313 | E12: GANANCIA | F12: 0.35 | G12: 1273.961609 | H12: 2365.928703 | I12: 5095.846438 | J12: 7461.775141 | M12: 0.25 | N12: 59086.69264 | R12: 1 | S12: 0.3407399451 | T12: 2
C13: 7 | D13: 7461.775141 | E13: GANANCIA | F13: 0.35 | G13: 2611.621299 | H13: 4850.153841 | I13: 10446.4852 | J13: 15296.63904 | M13: 0.3 | N13: 72073.33436 | R13: 2 | S13: 0.9707841421 | T13: 2
C14: 8 | D14: 15296.63904 | E14: PÉRDIDA | F14: 0.35 | G14: 5353.823663 | H14: 9942.815375 | I14: -5353.823663 | J14: 9942.815375 | M14: 0.35 | N14: 74132.435 | R14: 1 | S14: 0.05064865811 | T14: 1
C15: 9 | D15: 9942.815375 | E15: GANANCIA | F15: 0.35 | G15: 3479.985381 | H15: 6462.829994 | I15: 13919.94152 | J15: 20382.77152 | M15: 0.4 | N15: 64358.95267 | R15: 2 | S15: 0.9878568779 | T15: 2
C16: 10 | D16: 20382.77152 | E16: GANANCIA | F16: 0.35 | G16: 7133.970031 | H16: 13248.80149 | I16: 28535.88013 | J16: 41784.68161 | M16: 0.45 | N16: 46930.83448 | R16: 1 | S16: 0.3084729583 | T16: 2
C17: 11 | D17: 41784.68161 | E17: PÉRDIDA | F17: 0.35 | G17: 14624.63856 | H17: 27160.04305 | I17: -14624.63856 | J17: 27160.04305 | M17: 0.5 | N17: 28421.70943 | R17: 1 | S17: 0.7828131474 | T17: 1
C18: 12 | D18: 27160.04305 | E18: GANANCIA | F18: 0.35 | G18: 9506.015067 | H18: 17654.02798 | I18: 38024.06027 | J18: 55678.08825 | M18: 0.55 | N18: 14024.12634 | R18: 2 | S18: 0.2037500142 | T18: 2
C19: 13 | D19: 55678.08825 | E19: GANANCIA | F19: 0.35 | G19: 19487.33089 | H19: 36190.75736 | I19: 77949.32355 | J19: 114140.0809 | M19: 0.6 | N19: 5473.565759 | R19: 1 | S19: 0.9681552552 | T19: 2
C20: 14 | D20: 114140.0809 | E20: GANANCIA | F20: 0.35 | G20: 39949.02832 | H20: 74191.05259 | I20: 159796.1133 | J20: 233987.1659 | M20: 0.65 | N20: 1615.663467 | R20: 1 | S20: 0.04289800744 | T20: 2
C21: 15 | D21: 233987.1659 | E21: GANANCIA | F21: 0.35 | G21: 81895.50805 | H21: 152091.6578 | I21: 327582.0322 | J21: 479673.69 | M21: 0.7 | N21: 336.7008621 | R21: 2 | S21: 0.8490123656 | T21: 2
C22: 16 | D22: 479673.69 | E22: PÉRDIDA | F22: 0.35 | G22: 167885.7915 | H22: 311787.8985 | I22: -167885.7915 | J22: 311787.8985 | M22: 0.75 | N22: 44.39668513 | R22: 1 | S22: 0.3264506285 | T22: 1
C23: 17 | D23: 311787.8985 | E23: GANANCIA | F23: 0.35 | G23: 109125.7645 | H23: 202662.134 | I23: 436503.0579 | J23: 639165.192 | M23: 0.8 | N23: 3.073503348 | R23: 2 | S23: 0.6329415867 | T23: 2
C24: 18 | D24: 639165.192 | E24: PÉRDIDA | F24: 0.35 | G24: 223707.8172 | H24: 415457.3748 | I24: -223707.8172 | J24: 415457.3748 | M24: 0.85 | N24: 0.07848635884 | R24: 2 | S24: 0.3470969262 | T24: 1
C25: 19 | D25: 415457.3748 | E25: PÉRDIDA | F25: 0.35 | G25: 145410.0812 | H25: 270047.2936 | I25: -145410.0812 | J25: 270047.2936 | M25: 0.9 | N25: 0.000333446268 | R25: 1 | S25: 0.221124049 | T25: 1
C26: 20 | D26: 270047.2936 | E26: PÉRDIDA | F26: 0.35 | G26: 94516.55276 | H26: 175530.7408 | I26: -94516.55276 | J26: 175530.7408 | M26: 0.95 | N26: 0.000333446268 | R26: 2 | S26: 0.399970995 | T26: 1
C27: 21 | D27: 175530.7408 | E27: PÉRDIDA | F27: 0.35 | G27: 61435.75929 | H27: 114094.9815 | I27: -61435.75929 | J27: 114094.9815 | M27: 1 | N27: 0.000333446268 | R27: 2 | S27: 0.7965073082 | T27: 1
C28: 22 | D28: 114094.9815 | E28: GANANCIA | F28: 0.35 | G28: 39933.24354 | H28: 74161.73801 | I28: 159732.9742 | J28: 233894.7122 | R28: 1 | S28: 0.4665609971 | T28: 2
C29: 23 | D29: 233894.7122 | E29: PÉRDIDA | F29: 0.35 | G29: 81863.14926 | H29: 152031.5629 | I29: -81863.14926 | J29: 152031.5629 | R29: 1 | S29: 0.4939908835 | T29: 1
C30: 24 | D30: 152031.5629 | E30: PÉRDIDA | F30: 0.35 | G30: 53211.04702 | H30: 98820.51589 | I30: -53211.04702 | J30: 98820.51589 | R30: 2 | S30: 0.5443371033 | T30: 1
C31: 25 | D31: 98820.51589 | E31: PÉRDIDA | F31: 0.35 | G31: 34587.18056 | H31: 64233.33533 | I31: -34587.18056 | J31: 64233.33533 | R31: 2 | S31: 0.1848195119 | T31: 1
C32: 26 | D32: 64233.33533 | E32: GANANCIA | F32: 0.35 | G32: 22481.66737 | H32: 41751.66796 | I32: 89926.66946 | J32: 131678.3374 | R32: 1 | S32: 0.8987485331 | T32: 2
C33: 27 | D33: 131678.3374 | E33: PÉRDIDA | F33: 0.35 | G33: 46087.4181 | H33: 85590.91933 | I33: -46087.4181 | J33: 85590.91933 | R33: 2 | S33: 0.04349830925 | T33: 1 | W33: Mirá el vídeo aquí:
C34: 28 | D34: 85590.91933 | E34: PÉRDIDA | F34: 0.35 | G34: 29956.82176 | H34: 55634.09756 | I34: -29956.82176 | J34: 55634.09756 | R34: 2 | S34: 0.9986472985 | T34: 1 | W34: https://youtu.be/f1MND4P_YmQ
C35: 29 | D35: 55634.09756 | E35: PÉRDIDA | F35: 0.35 | G35: 19471.93415 | H35: 36162.16342 | I35: -19471.93415 | J35: 36162.16342 | R35: 2 | S35: 0.005706288595 | T35: 1
C36: 30 | D36: 36162.16342 | E36: GANANCIA | F36: 0.35 | G36: 12656.7572 | H36: 23505.40622 | I36: 50627.02878 | J36: 74132.435 | R36: 1 | S36: 0.5202052114 | T36: 2
R38: =SUM(R7:R36) -> 45 | T38: =SUM(T7:T36) -> 45

Sheet F ÓPTIMA
B2: F ÓPTIMA | D2: =IF(B31="","",INDEX(C28:BJ28,MATCH(MAX(C27:BJ27),C27:BJ27,))) -> 0.44 | AG2: ACCIONES
AG3: Capital Disponible | AJ3: 5000
B4: F KELLY | D4: =IF(D2="","",D6-((1-D6)/D14)) -> 0.3135778024 | AG4: Precio Entrada | AJ4: 65
AG5: Precio Stop Loss | AJ5: 63.5
B6: % Acierto | D6: =IF(B31="","",(COUNTIF(B31:B195,">0"))/COUNT(B31:B195)) -> 0.6 | AG6: Riesgo Unitario | AJ6: =IF(AJ5="","",AJ4-AJ5) -> 1.5
AG7: F óptima Diluido | AJ7: =IF(AJ5="","",D21) -> 0.044
B8: % Fallo | D8: =IF(D6="","",(COUNTIF(B31:B195,"<0"))/COUNT(B31:B195)) -> 0.4 | AG8: Monto de Riesgo | AJ8: =IF(AJ6="","",AJ3*AJ7) -> 220
B10: Avg. Ganancia | D10: =IF(D8="","",SUMIF(B31:B195,">0",B31:B195)/COUNTIF(B31:B195,">0")) -> 259.2466667 | AG10: # ACCIONES | AJ10: =IF(AJ8="","",ROUNDDOWN((AJ8/AJ6),0)) -> 146
AN11: ¡ÚNETE! A NUESTRAS REDES SOCIALES
B12: Avg. Pérdida | D12: =IF(D10="","",SUMIF(B31:B195,"<0",B31:B195)/COUNTIF(B31:B195,"<0")) -> -185.635 | AG12: DIVISAS (XXXUSD)
AG13: Capital Disponible | AJ13: 250
B14: PAYOFF | D14: =IF(D12="","",ABS(D10/D12)) -> 1.396539805 | AG14: Precio Entrada | AJ14: 1.1268
AG15: Precio Stop Loss | AJ15: 1.1258
B16: Esp. Matemática | D16: =IF(D14="","",(D6*D10)-(D8*ABS(D12))) -> 81.294 | AG16: Pips Distancia del SL | AJ16: =IF(AJ15="","",ABS(AJ14-AJ15)*10000) -> 10
AG17: F óptima Diluido | AJ17: =IF(AJ15="","",D21) -> 0.044 | AN17: Mirá el vídeo aquí:
B18: =IF(D16="","",IF(D16>0,"SISTEMA GANADOR",IF(D16=0,"NEUTRO","SISTEMA PERDEDOR"))) -> SISTEMA GANADOR | AG18: Monto de Riesgo | AJ18: =IF(AJ15="","",AJ13*AJ17) -> 11 | AN18: https://youtu.be/f1MND4P_YmQ
B20: FRACCIONES DILUIDAS | AG20: LOTAJE | AJ20: =IF(AJ18="","",ROUND((AJ18/AJ16)/10,2)) -> 0.11
B21: F ÓPTIMA | D21: =IF(D2="","",D2/10) -> 0.044
B22: F KELLY | D22: =IF(D4="","",D4/10) -> 0.03135778024
C26: Máx. Pérdida | E26: =MIN(B31:B195) -> -420
B27: TWR | C27: =PRODUCT(C31:C195) -> 1.009665485 | D27: 1.019304989 | E27: 1.028916652 | F27: 1.038498604 | G27: 1.048048967 | H27: 1.057565855 | I27: 1.067047371 | J27: 1.076491614 | K27: 1.085896672 | L27: 1.095260627 | M27: 1.113857517 | N27: 1.132266791 | O27: 1.150472851 | P27: 1.168459999 | Q27: 1.186212443 | R27: 1.220949639 | S27: 1.254556546 | T27: 1.286904276 | U27: 1.317863193 | V27: 1.347303161 | W27: 1.375093795 | X27: 1.40110472 | Y27: 1.425205824 | Z27: 1.447267516 | AA27: 1.467160987 | AB27: 1.484758465 | AC27: 1.499933482 | AD27: 1.512561131 | AE27: 1.522518324 | AF27: 1.529684057 | AG27: 1.533939664 | AH27: 1.535169077 | AI27: =PRODUCT(AI31:AI195) -> 1.53325908 | AJ27: 1.528099567 | AK27: 1.519583785 | AL27: 1.507608595 | AM27: 1.492074705 | AN27: 1.472886921 | AO27: 1.449954384 | AP27: 1.423190802 | AQ27: 1.392514683 | AR27: 1.357849558 | AS27: 1.319124205 | AT27: 1.276272859 | AU27: 1.229235425 | AV27: 1.177957683 | AW27: 1.122391477 | AX27: 1.062494915 | AY27: 0.9982325424 | AZ27: 0.9295755264 | BA27: 0.8565018186 | BB27: 0.7789963169 | BC27: 0.6970510175 | BD27: 0.6106651585 | BE27: 0.5198453537 | BF27: 0.4246057193 | BG27: 0.3249679891 | BH27: 0.2209616215 | BI27: 0.112623896 | BJ27: 0
B28: F | C28: 0.005 | D28: 0.01 | E28: 0.015 | F28: 0.02 | G28: 0.025 | H28: 0.03 | I28: 0.035 | J28: 0.04 | K28: 0.045 | L28: 0.05 | M28: 0.06 | N28: 0.07 | O28: 0.08 | P28: 0.09 | Q28: 0.1 | R28: 0.12 | S28: 0.14 | T28: 0.16 | U28: 0.18 | V28: 0.2 | W28: 0.22 | X28: 0.24 | Y28: 0.26 | Z28: 0.28 | AA28: 0.3 | AB28: 0.32 | AC28: 0.34 | AD28: 0.36 | AE28: 0.38 | AF28: 0.4 | AG28: 0.42 | AH28: 0.44 | AI28: 0.46 | AJ28: 0.48 | AK28: 0.5 | AL28: 0.52 | AM28: 0.54 | AN28: 0.56 | AO28: 0.58 | AP28: 0.6 | AQ28: 0.62 | AR28: 0.64 | AS28: 0.66 | AT28: 0.68 | AU28: 0.7 | AV28: 0.72 | AW28: 0.74 | AX28: 0.76 | AY28: 0.78 | AZ28: 0.8 | BA28: 0.82 | BB28: 0.84 | BC28: 0.86 | BD28: 0.88 | BE28: 0.9 | BF28: 0.92 | BG28: 0.94 | BH28: 0.96 | BI28: 0.98 | BJ28: 1
C30: HPR | D30: HPR | E30: HPR | F30: HPR | G30: HPR | H30: HPR | I30: HPR | J30: HPR | K30: HPR | L30: HPR | M30: HPR | N30: HPR | O30: HPR | P30: HPR | Q30: HPR | R30: HPR | S30: HPR | T30: HPR | U30: HPR | V30: HPR | W30: HPR | X30: HPR | Y30: HPR | Z30: HPR | AA30: HPR | AB30: HPR | AC30: HPR | AD30: HPR | AE30: HPR | AF30: HPR | AG30: HPR | AH30: HPR | AI30: HPR | AJ30: HPR | AK30: HPR | AL30: HPR | AM30: HPR | AN30: HPR | AO30: HPR | AP30: HPR | AQ30: HPR | AR30: HPR | AS30: HPR | AT30: HPR | AU30: HPR | AV30: HPR | AW30: HPR | AX30: HPR | AY30: HPR | AZ30: HPR | BA30: HPR | BB30: HPR | BC30: HPR | BD30: HPR | BE30: HPR | BF30: HPR | BG30: HPR | BH30: HPR | BI30: HPR | BJ30: HPR
B31: 310.2 | C31: =IF(B31="","",(1-C$28*$B31/$E$26)) -> 1.003692857 | D31: 1.007385714 | E31: 1.011078571 | F31: 1.014771429 | G31: 1.018464286 | H31: 1.022157143 | I31: 1.02585 | J31: 1.029542857 | K31: 1.033235714 | L31: 1.036928571 | M31: 1.044314286 | N31: 1.0517 | O31: 1.059085714 | P31: 1.066471429 | Q31: 1.073857143 | R31: 1.088628571 | S31: 1.1034 | T31: 1.118171429 | U31: 1.132942857 | V31: 1.147714286 | W31: 1.162485714 | X31: 1.177257143 | Y31: 1.192028571 | Z31: 1.2068 | AA31: 1.221571429 | AB31: 1.236342857 | AC31: 1.251114286 | AD31: 1.265885714 | AE31: 1.280657143 | AF31: 1.295428571 | AG31: 1.3102 | AH31: 1.324971429 | AI31: =IF(AH31="","",(1-AI$28*$B31/$E$26)) -> 1.339742857 | AJ31: 1.354514286 | AK31: 1.369285714 | AL31: 1.384057143 | AM31: 1.398828571 | AN31: 1.4136 | AO31: 1.428371429 | AP31: 1.443142857 | AQ31: 1.457914286 | AR31: 1.472685714 | AS31: 1.487457143 | AT31: 1.502228571 | AU31: 1.517 | AV31: 1.531771429 | AW31: 1.546542857 | AX31: 1.561314286 | AY31: 1.576085714 | AZ31: 1.590857143 | BA31: 1.605628571 | BB31: 1.6204 | BC31: 1.635171429 | BD31: 1.649942857 | BE31: 1.664714286 | BF31: 1.679485714 | BG31: 1.694257143 | BH31: 1.709028571 | BI31: 1.7238 | BJ31: 1.738571429
B32: -102 | C32: =IF(B32="","",(1-C$28*$B32/$E$26)) -> 0.9987857143 | D32: 0.9975714286 | E32: 0.9963571429 | F32: 0.9951428571 | G32: 0.9939285714 | H32: 0.9927142857 | I32: 0.9915 | J32: 0.9902857143 | K32: 0.9890714286 | L32: 0.9878571429 | M32: 0.9854285714 | N32: 0.983 | O32: 0.9805714286 | P32: 0.9781428571 | Q32: 0.9757142857 | R32: 0.9708571429 | S32: 0.966 | T32: 0.9611428571 | U32: 0.9562857143 | V32: 0.9514285714 | W32: 0.9465714286 | X32: =IF(W32="","",(1-X$28*$B32/$E$26)) -> 0.9417142857 | Y32: 0.9368571429 | Z32: 0.932 | AA32: 0.9271428571 | AB32: 0.9222857143 | AC32: 0.9174285714 | AD32: 0.9125714286 | AE32: 0.9077142857 | AF32: 0.9028571429 | AG32: =IF(AF32="","",(1-AG$28*$B32/$E$26)) -> 0.898 | AH32: 0.8931428571 | AI32: 0.8882857143 | AJ32: 0.8834285714 | AK32: 0.8785714286 | AL32: 0.8737142857 | AM32: =IF(AL32="","",(1-AM$28*$B32/$E$26)) -> 0.8688571429 | AN32: 0.864 | AO32: 0.8591428571 | AP32: 0.8542857143 | AQ32: 0.8494285714 | AR32: 0.8445714286 | AS32: 0.8397142857 | AT32: 0.8348571429 | AU32: 0.83 | AV32: 0.8251428571 | AW32: =IF(AV32="","",(1-AW$28*$B32/$E$26)) -> 0.8202857143 | AX32: 0.8154285714 | AY32: 0.8105714286 | AZ32: 0.8057142857 | BA32: 0.8008571429 | BB32: 0.796 | BC32: 0.7911428571 | BD32: 0.7862857143 | BE32: 0.7814285714 | BF32: 0.7765714286 | BG32: 0.7717142857 | BH32: 0.7668571429 | BI32: 0.762 | BJ32: 0.7571428571
B33: 519.45 | C33: =IF(B33="","",(1-C$28*$B33/$E$26)) -> 1.006183929 | D33: 1.012367857 | E33: 1.018551786 | F33: 1.024735714 | G33: 1.030919643 | H33: 1.037103571 | I33: 1.0432875 | J33: 1.049471429 | K33: 1.055655357 | L33: 1.061839286 | M33: 1.074207143 | N33: 1.086575 | O33: 1.098942857 | P33: 1.111310714 | Q33: 1.123678571 | R33: 1.148414286 | S33: 1.17315 | T33: 1.197885714 | U33: 1.222621429 | V33: 1.247357143 | W33: 1.272092857 | X33: 1.296828571 | Y33: 1.321564286 | Z33: 1.3463 | AA33: 1.371035714 | AB33: 1.395771429 | AC33: 1.420507143 | AD33: 1.445242857 | AE33: 1.469978571 | AF33: 1.494714286 | AG33: 1.51945 | AH33: 1.544185714 | AI33: 1.568921429 | AJ33: 1.593657143 | AK33: 1.618392857 | AL33: 1.643128571 | AM33: 1.667864286 | AN33: 1.6926 | AO33: 1.717335714 | AP33: 1.742071429 | AQ33: 1.766807143 | AR33: 1.791542857 | AS33: 1.816278571 | AT33: 1.841014286 | AU33: 1.86575 | AV33: 1.890485714 | AW33: 1.915221429 | AX33: 1.939957143 | AY33: 1.964692857 | AZ33: 1.989428571 | BA33: 2.014164286 | BB33: 2.0389 | BC33: 2.063635714 | BD33: 2.088371429 | BE33: 2.113107143 | BF33: 2.137842857 | BG33: 2.162578571 | BH33: 2.187314286 | BI33: 2.21205 | BJ33: 2.236785714
B34: -135.69 | C34: =IF(B34="","",(1-C$28*$B34/$E$26)) -> 0.9983846429 | D34: 0.9967692857 | E34: 0.9951539286 | F34: 0.9935385714 | G34: 0.9919232143 | H34: 0.9903078571 | I34: 0.9886925 | J34: 0.9870771429 | K34: 0.9854617857 | L34: 0.9838464286 | M34: 0.9806157143 | N34: 0.977385 | O34: 0.9741542857 | P34: 0.9709235714 | Q34: 0.9676928571 | R34: 0.9612314286 | S34: 0.95477 | T34: 0.9483085714 | U34: 0.9418471429 | V34: 0.9353857143 | W34: 0.9289242857 | X34: 0.9224628571 | Y34: 0.9160014286 | Z34: 0.90954 | AA34: 0.9030785714 | AB34: 0.8966171429 | AC34: 0.8901557143 | AD34: 0.8836942857 | AE34: 0.8772328571 | AF34: 0.8707714286 | AG34: 0.86431 | AH34: 0.8578485714 | AI34: 0.8513871429 | AJ34: 0.8449257143 | AK34: 0.8384642857 | AL34: 0.8320028571 | AM34: 0.8255414286 | AN34: 0.81908 | AO34: 0.8126185714 | AP34: 0.8061571429 | AQ34: 0.7996957143 | AR34: 0.7932342857 | AS34: 0.7867728571 | AT34: 0.7803114286 | AU34: 0.77385 | AV34: 0.7673885714 | AW34: 0.7609271429 | AX34: 0.7544657143 | AY34: 0.7480042857 | AZ34: 0.7415428571 | BA34: 0.7350814286 | BB34: 0.72862 | BC34: 0.7221585714 | BD34: 0.7156971429 | BE34: 0.7092357143 | BF34: 0.7027742857 | BG34: 0.6963128571 | BH34: 0.6898514286 | BI34: 0.68339 | BJ34: 0.6769285714
B35: 462.38 | C35: =IF(B35="","",(1-C$28*$B35/$E$26)) -> 1.005504524 | D35: 1.011009048 | E35: 1.016513571 | F35: 1.022018095 | G35: 1.027522619 | H35: 1.033027143 | I35: 1.038531667 | J35: 1.04403619 | K35: 1.049540714 | L35: 1.055045238 | M35: 1.066054286 | N35: 1.077063333 | O35: 1.088072381 | P35: 1.099081429 | Q35: 1.110090476 | R35: 1.132108571 | S35: 1.154126667 | T35: 1.176144762 | U35: 1.198162857 | V35: 1.220180952 | W35: 1.242199048 | X35: 1.264217143 | Y35: 1.286235238 | Z35: 1.308253333 | AA35: 1.330271429 | AB35: 1.352289524 | AC35: 1.374307619 | AD35: 1.396325714 | AE35: 1.41834381 | AF35: 1.440361905 | AG35: 1.46238 | AH35: 1.484398095 | AI35: 1.50641619 | AJ35: 1.528434286 | AK35: 1.550452381 | AL35: 1.572470476 | AM35: 1.594488571 | AN35: 1.616506667 | AO35: 1.638524762 | AP35: 1.660542857 | AQ35: 1.682560952 | AR35: 1.704579048 | AS35: 1.726597143 | AT35: 1.748615238 | AU35: 1.770633333 | AV35: 1.792651429 | AW35: 1.814669524 | AX35: 1.836687619 | AY35: 1.858705714 | AZ35: 1.88072381 | BA35: 1.902741905 | BB35: 1.92476 | BC35: 1.946778095 | BD35: 1.96879619 | BE35: 1.990814286 | BF35: 2.012832381 | BG35: 2.034850476 | BH35: 2.056868571 | BI35: 2.078886667 | BJ35: 2.100904762
B36: 189.5 | C36: =IF(B36="","",(1-C$28*$B36/$E$26)) -> 1.002255952 | D36: 1.004511905 | E36: 1.006767857 | F36: 1.00902381 | G36: 1.011279762 | H36: 1.013535714 | I36: 1.015791667 | J36: 1.018047619 | K36: 1.020303571 | L36: 1.022559524 | M36: 1.027071429 | N36: 1.031583333 | O36: 1.036095238 | P36: 1.040607143 | Q36: 1.045119048 | R36: 1.054142857 | S36: 1.063166667 | T36: 1.072190476 | U36: 1.081214286 | V36: 1.090238095 | W36: 1.099261905 | X36: 1.108285714 | Y36: 1.117309524 | Z36: 1.126333333 | AA36: 1.135357143 | AB36: 1.144380952 | AC36: 1.153404762 | AD36: 1.162428571 | AE36: 1.171452381 | AF36: 1.18047619 | AG36: 1.1895 | AH36: 1.19852381 | AI36: 1.207547619 | AJ36: 1.216571429 | AK36: 1.225595238 | AL36: 1.234619048 | AM36: 1.243642857 | AN36: 1.252666667 | AO36: 1.261690476 | AP36: 1.270714286 | AQ36: 1.279738095 | AR36: 1.288761905 | AS36: 1.297785714 | AT36: 1.306809524 | AU36: 1.315833333 | AV36: 1.324857143 | AW36: 1.333880952 | AX36: 1.342904762 | AY36: 1.351928571 | AZ36: 1.360952381 | BA36: 1.36997619 | BB36: 1.379 | BC36: 1.38802381 | BD36: 1.397047619 | BE36: 1.406071429 | BF36: 1.415095238 | BG36: 1.424119048 | BH36: 1.433142857 | BI36: 1.442166667 | BJ36: 1.451190476
B37: 47.31 | C37: =IF(B37="","",(1-C$28*$B37/$E$26)) -> 1.000563214 | D37: 1.001126429 | E37: 1.001689643 | F37: 1.002252857 | G37: 1.002816071 | H37: 1.003379286 | I37: 1.0039425 | J37: 1.004505714 | K37: 1.005068929 | L37: 1.005632143 | M37: 1.006758571 | N37: 1.007885 | O37: 1.009011429 | P37: 1.010137857 | Q37: 1.011264286 | R37: 1.013517143 | S37: 1.01577 | T37: 1.018022857 | U37: 1.020275714 | V37: 1.022528571 | W37: 1.024781429 | X37: 1.027034286 | Y37: 1.029287143 | Z37: 1.03154 | AA37: 1.033792857 | AB37: 1.036045714 | AC37: 1.038298571 | AD37: 1.040551429 | AE37: 1.042804286 | AF37: 1.045057143 | AG37: 1.04731 | AH37: 1.049562857 | AI37: 1.051815714 | AJ37: 1.054068571 | AK37: 1.056321429 | AL37: 1.058574286 | AM37: 1.060827143 | AN37: 1.06308 | AO37: 1.065332857 | AP37: 1.067585714 | AQ37: 1.069838571 | AR37: 1.072091429 | AS37: 1.074344286 | AT37: 1.076597143 | AU37: 1.07885 | AV37: 1.081102857 | AW37: 1.083355714 | AX37: 1.085608571 | AY37: 1.087861429 | AZ37: 1.090114286 | BA37: 1.092367143 | BB37: 1.09462 | BC37: 1.096872857 | BD37: 1.099125714 | BE37: 1.101378571 | BF37: 1.103631429 | BG37: 1.105884286 | BH37: 1.108137143 | BI37: 1.11039 | BJ37: 1.112642857
B38: -84.85 | C38: =IF(B38="","",(1-C$28*$B38/$E$26)) -> 0.998989881 | D38: 0.9979797619 | E38: 0.9969696429 | F38: 0.9959595238 | G38: 0.9949494048 | H38: 0.9939392857 | I38: 0.9929291667 | J38: 0.9919190476 | K38: 0.9909089286 | L38: 0.9898988095 | M38: 0.9878785714 | N38: 0.9858583333 | O38: 0.9838380952 | P38: 0.9818178571 | Q38: 0.979797619 | R38: 0.9757571429 | S38: 0.9717166667 | T38: 0.9676761905 | U38: 0.9636357143 | V38: 0.9595952381 | W38: 0.9555547619 | X38: 0.9515142857 | Y38: 0.9474738095 | Z38: 0.9434333333 | AA38: 0.9393928571 | AB38: 0.935352381 | AC38: 0.9313119048 | AD38: 0.9272714286 | AE38: 0.9232309524 | AF38: 0.9191904762 | AG38: 0.91515 | AH38: 0.9111095238 | AI38: 0.9070690476 | AJ38: 0.9030285714 | AK38: 0.8989880952 | AL38: 0.894947619 | AM38: 0.8909071429 | AN38: 0.8868666667 | AO38: 0.8828261905 | AP38: 0.8787857143 | AQ38: 0.8747452381 | AR38: 0.8707047619 | AS38: 0.8666642857 | AT38: 0.8626238095 | AU38: 0.8585833333 | AV38: 0.8545428571 | AW38: 0.850502381 | AX38: 0.8464619048 | AY38: 0.8424214286 | AZ38: 0.8383809524 | BA38: 0.8343404762 | BB38: 0.8303 | BC38: 0.8262595238 | BD38: 0.8222190476 | BE38: 0.8181785714 | BF38: 0.8141380952 | BG38: 0.810097619 | BH38: 0.8060571429 | BI38: 0.8020166667 | BJ38: 0.7979761905
B39: -420 | C39: =IF(B39="","",(1-C$28*$B39/$E$26)) -> 0.995 | D39: 0.99 | E39: 0.985 | F39: 0.98 | G39: 0.975 | H39: 0.97 | I39: 0.965 | J39: 0.96 | K39: 0.955 | L39: 0.95 | M39: 0.94 | N39: 0.93 | O39: 0.92 | P39: 0.91 | Q39: 0.9 | R39: 0.88 | S39: 0.86 | T39: 0.84 | U39: 0.82 | V39: 0.8 | W39: 0.78 | X39: 0.76 | Y39: 0.74 | Z39: 0.72 | AA39: 0.7 | AB39: 0.68 | AC39: 0.66 | AD39: 0.64 | AE39: 0.62 | AF39: 0.6 | AG39: 0.58 | AH39: 0.56 | AI39: 0.54 | AJ39: 0.52 | AK39: 0.5 | AL39: 0.48 | AM39: 0.46 | AN39: 0.44 | AO39: 0.42 | AP39: 0.4 | AQ39: 0.38 | AR39: 0.36 | AS39: 0.34 | AT39: 0.32 | AU39: 0.3 | AV39: 0.28 | AW39: 0.26 | AX39: 0.24 | AY39: 0.22 | AZ39: 0.2 | BA39: 0.18 | BB39: 0.16 | BC39: 0.14 | BD39: 0.12 | BE39: 0.1 | BF39: 0.08 | BG39: 0.06 | BH39: 0.04 | BI39: 0.02 | BJ39: 0
B40: 26.64 | C40: =IF(B40="","",(1-C$28*$B40/$E$26)) -> 1.000317143 | D40: 1.000634286 | E40: 1.000951429 | F40: 1.001268571 | G40: 1.001585714 | H40: 1.001902857 | I40: 1.00222 | J40: 1.002537143 | K40: 1.002854286 | L40: 1.003171429 | M40: 1.003805714 | N40: 1.00444 | O40: 1.005074286 | P40: 1.005708571 | Q40: 1.006342857 | R40: 1.007611429 | S40: 1.00888 | T40: 1.010148571 | U40: 1.011417143 | V40: 1.012685714 | W40: 1.013954286 | X40: 1.015222857 | Y40: 1.016491429 | Z40: 1.01776 | AA40: 1.019028571 | AB40: 1.020297143 | AC40: 1.021565714 | AD40: 1.022834286 | AE40: 1.024102857 | AF40: 1.025371429 | AG40: 1.02664 | AH40: 1.027908571 | AI40: 1.029177143 | AJ40: 1.030445714 | AK40: 1.031714286 | AL40: 1.032982857 | AM40: 1.034251429 | AN40: 1.03552 | AO40: 1.036788571 | AP40: 1.038057143 | AQ40: 1.039325714 | AR40: 1.040594286 | AS40: 1.041862857 | AT40: 1.043131429 | AU40: 1.0444 | AV40: 1.045668571 | AW40: 1.046937143 | AX40: 1.048205714 | AY40: 1.049474286 | AZ40: 1.050742857 | BA40: 1.052011429 | BB40: 1.05328 | BC40: 1.054548571 | BD40: 1.055817143 | BE40: 1.057085714 | BF40: 1.058354286 | BG40: 1.059622857 | BH40: 1.060891429 | BI40: 1.06216 | BJ40: 1.063428571
C41: =IF(B41="","",(1-C$28*$B41/$E$26)) ->  | AF41: =IF(AE41="","",(1-AF$28*$B41/$E$26)) -> 
C42: =IF(B42="","",(1-C$28*$B42/$E$26)) -> 
C43: =IF(B43="","",(1-C$28*$B43/$E$26)) -> 
C44: =IF(B44="","",(1-C$28*$B44/$E$26)) ->  | D44: =IF(C44="","",(1-D$28*$B44/$E$26)) ->  | Q44: =IF(P44="","",(1-Q$28*$B44/$E$26)) ->  | Z44: =IF(Y44="","",(1-Z$28*$B44/$E$26)) ->  | AM44: =IF(AL44="","",(1-AM$28*$B44/$E$26)) ->  | AX44: =IF(AW44="","",(1-AX$28*$B44/$E$26)) -> 
D45: =IF(C45="","",(1-D$28*$B45/$E$26)) ->  | Z45: =IF(Y45="","",(1-Z$28*$B45/$E$26)) ->  | AM45: =IF(AL45="","",(1-AM$28*$B45/$E$26)) ->  | AX45: =IF(AW45="","",(1-AX$28*$B45/$E$26)) -> 
D46: =IF(C46="","",(1-D$28*$B46/$E$26)) ->  | Z46: =IF(Y46="","",(1-Z$28*$B46/$E$26)) ->  | AM46: =IF(AL46="","",(1-AM$28*$B46/$E$26)) ->  | AX46: =IF(AW46="","",(1-AX$28*$B46/$E$26)) -> 
D47: =IF(C47="","",(1-D$28*$B47/$E$26)) ->  | Z47: =IF(Y47="","",(1-Z$28*$B47/$E$26)) ->  | AM47: =IF(AL47="","",(1-AM$28*$B47/$E$26)) ->  | AX47: =IF(AW47="","",(1-AX$28*$B47/$E$26)) -> 
D48: =IF(C48="","",(1-D$28*$B48/$E$26)) ->  | Z48: =IF(Y48="","",(1-Z$28*$B48/$E$26)) ->  | AM48: =IF(AL48="","",(1-AM$28*$B48/$E$26)) ->  | AX48: =IF(AW48="","",(1-AX$28*$B48/$E$26)) -> 
D49: =IF(C49="","",(1-D$28*$B49/$E$26)) ->  | Z49: =IF(Y49="","",(1-Z$28*$B49/$E$26)) ->  | AM49: =IF(AL49="","",(1-AM$28*$B49/$E$26)) ->  | AX49: =IF(AW49="","",(1-AX$28*$B49/$E$26)) -> 
D50: =IF(C50="","",(1-D$28*$B50/$E$26)) ->  | Z50: =IF(Y50="","",(1-Z$28*$B50/$E$26)) ->  | AM50: =IF(AL50="","",(1-AM$28*$B50/$E$26)) ->  | AX50: =IF(AW50="","",(1-AX$28*$B50/$E$26)) -> 
D51: =IF(C51="","",(1-D$28*$B51/$E$26)) ->  | Z51: =IF(Y51="","",(1-Z$28*$B51/$E$26)) ->  | AM51: =IF(AL51="","",(1-AM$28*$B51/$E$26)) ->  | AX51: =IF(AW51="","",(1-AX$28*$B51/$E$26)) -> 
D52: =IF(C52="","",(1-D$28*$B52/$E$26)) ->  | Z52: =IF(Y52="","",(1-Z$28*$B52/$E$26)) ->  | AM52: =IF(AL52="","",(1-AM$28*$B52/$E$26)) ->  | AX52: =IF(AW52="","",(1-AX$28*$B52/$E$26)) -> 
T53: =IF(S53="","",(1-T$28*$B53/$E$26)) ->  | Z53: =IF(Y53="","",(1-Z$28*$B53/$E$26)) ->  | AM53: =IF(AL53="","",(1-AM$28*$B53/$E$26)) ->  | AX53: =IF(AW53="","",(1-AX$28*$B53/$E$26)) -> 
D54: =IF(C54="","",(1-D$28*$B54/$E$26)) ->  | Z54: =IF(Y54="","",(1-Z$28*$B54/$E$26)) ->  | AM54: =IF(AL54="","",(1-AM$28*$B54/$E$26)) ->  | AX54: =IF(AW54="","",(1-AX$28*$B54/$E$26)) -> 
D55: =IF(C55="","",(1-D$28*$B55/$E$26)) -> 
D56: =IF(C56="","",(1-D$28*$B56/$E$26)) ->  | Q56: =IF(P56="","",(1-Q$28*$B56/$E$26)) ->  | Z56: =IF(Y56="","",(1-Z$28*$B56/$E$26)) ->  | AM56: =IF(AL56="","",(1-AM$28*$B56/$E$26)) ->  | AX56: =IF(AW56="","",(1-AX$28*$B56/$E$26)) -> 
D57: =IF(C57="","",(1-D$28*$B57/$E$26)) ->  | Z57: =IF(Y57="","",(1-Z$28*$B57/$E$26)) ->  | AM57: =IF(AL57="","",(1-AM$28*$B57/$E$26)) ->  | AX57: =IF(AW57="","",(1-AX$28*$B57/$E$26)) -> 
D58: =IF(C58="","",(1-D$28*$B58/$E$26)) ->  | Z58: =IF(Y58="","",(1-Z$28*$B58/$E$26)) ->  | AM58: =IF(AL58="","",(1-AM$28*$B58/$E$26)) ->  | AX58: =IF(AW58="","",(1-AX$28*$B58/$E$26)) -> 
D59: =IF(C59="","",(1-D$28*$B59/$E$26)) ->  | Z59: =IF(Y59="","",(1-Z$28*$B59/$E$26)) ->  | AM59: =IF(AL59="","",(1-AM$28*$B59/$E$26)) ->  | AX59: =IF(AW59="","",(1-AX$28*$B59/$E$26)) -> 
D60: =IF(C60="","",(1-D$28*$B60/$E$26)) ->  | Z60: =IF(Y60="","",(1-Z$28*$B60/$E$26)) ->  | AM60: =IF(AL60="","",(1-AM$28*$B60/$E$26)) ->  | AX60: =IF(AW60="","",(1-AX$28*$B60/$E$26)) -> 
D61: =IF(C61="","",(1-D$28*$B61/$E$26)) ->  | Z61: =IF(Y61="","",(1-Z$28*$B61/$E$26)) ->  | AM61: =IF(AL61="","",(1-AM$28*$B61/$E$26)) ->  | AX61: =IF(AW61="","",(1-AX$28*$B61/$E$26)) -> 
D62: =IF(C62="","",(1-D$28*$B62/$E$26)) ->  | Z62: =IF(Y62="","",(1-Z$28*$B62/$E$26)) ->  | AM62: =IF(AL62="","",(1-AM$28*$B62/$E$26)) ->  | AX62: =IF(AW62="","",(1-AX$28*$B62/$E$26)) -> 
D63: =IF(C63="","",(1-D$28*$B63/$E$26)) ->  | Z63: =IF(Y63="","",(1-Z$28*$B63/$E$26)) ->  | AM63: =IF(AL63="","",(1-AM$28*$B63/$E$26)) ->  | AX63: =IF(AW63="","",(1-AX$28*$B63/$E$26)) -> 
D64: =IF(C64="","",(1-D$28*$B64/$E$26)) ->  | Z64: =IF(Y64="","",(1-Z$28*$B64/$E$26)) ->  | AM64: =IF(AL64="","",(1-AM$28*$B64/$E$26)) ->  | AX64: =IF(AW64="","",(1-AX$28*$B64/$E$26)) -> 
Z65: =IF(Y65="","",(1-Z$28*$B65/$E$26)) ->  | AM65: =IF(AL65="","",(1-AM$28*$B65/$E$26)) ->  | AX65: =IF(AW65="","",(1-AX$28*$B65/$E$26)) -> 
D66: =IF(C66="","",(1-D$28*$B66/$E$26)) ->  | Z66: =IF(Y66="","",(1-Z$28*$B66/$E$26)) ->  | AM66: =IF(AL66="","",(1-AM$28*$B66/$E$26)) ->  | AX66: =IF(AW66="","",(1-AX$28*$B66/$E$26)) -> 
D67: =IF(C67="","",(1-D$28*$B67/$E$26)) -> 
D68: =IF(C68="","",(1-D$28*$B68/$E$26)) ->  | Q68: =IF(P68="","",(1-Q$28*$B68/$E$26)) ->  | Z68: =IF(Y68="","",(1-Z$28*$B68/$E$26)) ->  | AM68: =IF(AL68="","",(1-AM$28*$B68/$E$26)) ->  | AX68: =IF(AW68="","",(1-AX$28*$B68/$E$26)) -> 
D69: =IF(C69="","",(1-D$28*$B69/$E$26)) ->  | Z69: =IF(Y69="","",(1-Z$28*$B69/$E$26)) ->  | AM69: =IF(AL69="","",(1-AM$28*$B69/$E$26)) ->  | AX69: =IF(AW69="","",(1-AX$28*$B69/$E$26)) -> 
D70: =IF(C70="","",(1-D$28*$B70/$E$26)) ->  | Z70: =IF(Y70="","",(1-Z$28*$B70/$E$26)) ->  | AM70: =IF(AL70="","",(1-AM$28*$B70/$E$26)) ->  | AX70: =IF(AW70="","",(1-AX$28*$B70/$E$26)) -> 
D71: =IF(C71="","",(1-D$28*$B71/$E$26)) ->  | Z71: =IF(Y71="","",(1-Z$28*$B71/$E$26)) ->  | AM71: =IF(AL71="","",(1-AM$28*$B71/$E$26)) ->  | AX71: =IF(AW71="","",(1-AX$28*$B71/$E$26)) -> 
D72: =IF(C72="","",(1-D$28*$B72/$E$26)) ->  | Z72: =IF(Y72="","",(1-Z$28*$B72/$E$26)) ->  | AM72: =IF(AL72="","",(1-AM$28*$B72/$E$26)) ->  | AX72: =IF(AW72="","",(1-AX$28*$B72/$E$26)) -> 
D73: =IF(C73="","",(1-D$28*$B73/$E$26)) ->  | Z73: =IF(Y73="","",(1-Z$28*$B73/$E$26)) ->  | AM73: =IF(AL73="","",(1-AM$28*$B73/$E$26)) ->  | AX73: =IF(AW73="","",(1-AX$28*$B73/$E$26)) -> 
D74: =IF(C74="","",(1-D$28*$B74/$E$26)) ->  | Z74: =IF(Y74="","",(1-Z$28*$B74/$E$26)) ->  | AM74: =IF(AL74="","",(1-AM$28*$B74/$E$26)) ->  | AX74: =IF(AW74="","",(1-AX$28*$B74/$E$26)) -> 
D75: =IF(C75="","",(1-D$28*$B75/$E$26)) ->  | Z75: =IF(Y75="","",(1-Z$28*$B75/$E$26)) ->  | AM75: =IF(AL75="","",(1-AM$28*$B75/$E$26)) ->  | AX75: =IF(AW75="","",(1-AX$28*$B75/$E$26)) -> 
C76: =IF(B76="","",(1-C$28*$B76/$E$26)) ->  | D76: =IF(C76="","",(1-D$28*$B76/$E$26)) ->  | Z76: =IF(Y76="","",(1-Z$28*$B76/$E$26)) ->  | AM76: =IF(AL76="","",(1-AM$28*$B76/$E$26)) ->  | AX76: =IF(AW76="","",(1-AX$28*$B76/$E$26)) -> 
Z77: =IF(Y77="","",(1-Z$28*$B77/$E$26)) ->  | AM77: =IF(AL77="","",(1-AM$28*$B77/$E$26)) ->  | AX77: =IF(AW77="","",(1-AX$28*$B77/$E$26)) -> 
D78: =IF(C78="","",(1-D$28*$B78/$E$26)) ->  | Z78: =IF(Y78="","",(1-Z$28*$B78/$E$26)) ->  | AH78: =IF(AG78="","",(1-AH$28*$B78/$E$26)) ->  | AM78: =IF(AL78="","",(1-AM$28*$B78/$E$26)) ->  | AX78: =IF(AW78="","",(1-AX$28*$B78/$E$26)) -> 
D79: =IF(C79="","",(1-D$28*$B79/$E$26)) -> 
D80: =IF(C80="","",(1-D$28*$B80/$E$26)) ->  | Q80: =IF(P80="","",(1-Q$28*$B80/$E$26)) ->  | Z80: =IF(Y80="","",(1-Z$28*$B80/$E$26)) ->  | AM80: =IF(AL80="","",(1-AM$28*$B80/$E$26)) ->  | AX80: =IF(AW80="","",(1-AX$28*$B80/$E$26)) -> 
D81: =IF(C81="","",(1-D$28*$B81/$E$26)) ->  | Z81: =IF(Y81="","",(1-Z$28*$B81/$E$26)) ->  | AM81: =IF(AL81="","",(1-AM$28*$B81/$E$26)) ->  | AX81: =IF(AW81="","",(1-AX$28*$B81/$E$26)) -> 
D82: =IF(C82="","",(1-D$28*$B82/$E$26)) ->  | Z82: =IF(Y82="","",(1-Z$28*$B82/$E$26)) ->  | AM82: =IF(AL82="","",(1-AM$28*$B82/$E$26)) ->  | AX82: =IF(AW82="","",(1-AX$28*$B82/$E$26)) -> 
D83: =IF(C83="","",(1-D$28*$B83/$E$26)) ->  | Z83: =IF(Y83="","",(1-Z$28*$B83/$E$26)) ->  | AM83: =IF(AL83="","",(1-AM$28*$B83/$E$26)) ->  | AX83: =IF(AW83="","",(1-AX$28*$B83/$E$26)) -> 
D84: =IF(C84="","",(1-D$28*$B84/$E$26)) ->  | Z84: =IF(Y84="","",(1-Z$28*$B84/$E$26)) ->  | AM84: =IF(AL84="","",(1-AM$28*$B84/$E$26)) ->  | AX84: =IF(AW84="","",(1-AX$28*$B84/$E$26)) -> 
D85: =IF(C85="","",(1-D$28*$B85/$E$26)) ->  | Z85: =IF(Y85="","",(1-Z$28*$B85/$E$26)) ->  | AM85: =IF(AL85="","",(1-AM$28*$B85/$E$26)) ->  | AX85: =IF(AW85="","",(1-AX$28*$B85/$E$26)) -> 
D86: =IF(C86="","",(1-D$28*$B86/$E$26)) ->  | Z86: =IF(Y86="","",(1-Z$28*$B86/$E$26)) ->  | AM86: =IF(AL86="","",(1-AM$28*$B86/$E$26)) ->  | AX86: =IF(AW86="","",(1-AX$28*$B86/$E$26)) -> 
D87: =IF(C87="","",(1-D$28*$B87/$E$26)) ->  | Z87: =IF(Y87="","",(1-Z$28*$B87/$E$26)) ->  | AM87: =IF(AL87="","",(1-AM$28*$B87/$E$26)) ->  | AX87: =IF(AW87="","",(1-AX$28*$B87/$E$26)) -> 
D88: =IF(C88="","",(1-D$28*$B88/$E$26)) ->  | Z88: =IF(Y88="","",(1-Z$28*$B88/$E$26)) ->  | AM88: =IF(AL88="","",(1-AM$28*$B88/$E$26)) ->  | AX88: =IF(AW88="","",(1-AX$28*$B88/$E$26)) -> 
Z89: =IF(Y89="","",(1-Z$28*$B89/$E$26)) ->  | AM89: =IF(AL89="","",(1-AM$28*$B89/$E$26)) ->  | AX89: =IF(AW89="","",(1-AX$28*$B89/$E$26)) -> 
D90: =IF(C90="","",(1-D$28*$B90/$E$26)) ->  | Z90: =IF(Y90="","",(1-Z$28*$B90/$E$26)) ->  | AM90: =IF(AL90="","",(1-AM$28*$B90/$E$26)) ->  | AX90: =IF(AW90="","",(1-AX$28*$B90/$E$26)) -> 
D91: =IF(C91="","",(1-D$28*$B91/$E$26)) -> 
D92: =IF(C92="","",(1-D$28*$B92/$E$26)) ->  | Q92: =IF(P92="","",(1-Q$28*$B92/$E$26)) ->  | Z92: =IF(Y92="","",(1-Z$28*$B92/$E$26)) ->  | AM92: =IF(AL92="","",(1-AM$28*$B92/$E$26)) ->  | AX92: =IF(AW92="","",(1-AX$28*$B92/$E$26)) -> 
D93: =IF(C93="","",(1-D$28*$B93/$E$26)) ->  | Z93: =IF(Y93="","",(1-Z$28*$B93/$E$26)) ->  | AM93: =IF(AL93="","",(1-AM$28*$B93/$E$26)) ->  | AX93: =IF(AW93="","",(1-AX$28*$B93/$E$26)) -> 
D94: =IF(C94="","",(1-D$28*$B94/$E$26)) ->  | Z94: =IF(Y94="","",(1-Z$28*$B94/$E$26)) ->  | AM94: =IF(AL94="","",(1-AM$28*$B94/$E$26)) ->  | AX94: =IF(AW94="","",(1-AX$28*$B94/$E$26)) -> 
D95: =IF(C95="","",(1-D$28*$B95/$E$26)) ->  | Z95: =IF(Y95="","",(1-Z$28*$B95/$E$26)) ->  | AM95: =IF(AL95="","",(1-AM$28*$B95/$E$26)) ->  | AX95: =IF(AW95="","",(1-AX$28*$B95/$E$26)) -> 
C96: =IF(B96="","",(1-C$28*$B96/$E$26)) ->  | H96: =IF(G96="","",(1-H$28*$B96/$E$26)) ->  | X96: =IF(W96="","",(1-X$28*$B96/$E$26)) ->  | AA96: =IF(Z96="","",(1-AA$28*$B96/$E$26)) ->  | AD96: =IF(AC96="","",(1-AD$28*$B96/$E$26)) ->  | AV96: =IF(AU96="","",(1-AV$28*$B96/$E$26)) -> 
H97: =IF(G97="","",(1-H$28*$B97/$E$26)) ->  | AD97: =IF(AC97="","",(1-AD$28*$B97/$E$26)) ->  | AV97: =IF(AU97="","",(1-AV$28*$B97/$E$26)) -> 
H98: =IF(G98="","",(1-H$28*$B98/$E$26)) ->  | AD98: =IF(AC98="","",(1-AD$28*$B98/$E$26)) ->  | AV98: =IF(AU98="","",(1-AV$28*$B98/$E$26)) -> 
H99: =IF(G99="","",(1-H$28*$B99/$E$26)) ->  | AD99: =IF(AC99="","",(1-AD$28*$B99/$E$26)) ->  | AV99: =IF(AU99="","",(1-AV$28*$B99/$E$26)) -> 
H100: =IF(G100="","",(1-H$28*$B100/$E$26)) ->  | AD100: =IF(AC100="","",(1-AD$28*$B100/$E$26)) ->  | AV100: =IF(AU100="","",(1-AV$28*$B100/$E$26)) -> 
AD101: =IF(AC101="","",(1-AD$28*$B101/$E$26)) ->  | AV101: =IF(AU101="","",(1-AV$28*$B101/$E$26)) -> 
G102: =IF(F102="","",(1-G$28*$B102/$E$26)) ->  | AD102: =IF(AC102="","",(1-AD$28*$B102/$E$26)) ->  | AV102: =IF(AU102="","",(1-AV$28*$B102/$E$26)) -> 
G103: =IF(F103="","",(1-G$28*$B103/$E$26)) -> 
G104: =IF(F104="","",(1-G$28*$B104/$E$26)) ->  | P104: =IF(O104="","",(1-P$28*$B104/$E$26)) ->  | AD104: =IF(AC104="","",(1-AD$28*$B104/$E$26)) ->  | AI104: =IF(AH104="","",(1-AI$28*$B104/$E$26)) ->  | AV104: =IF(AU104="","",(1-AV$28*$B104/$E$26)) -> 
G105: =IF(F105="","",(1-G$28*$B105/$E$26)) ->  | AD105: =IF(AC105="","",(1-AD$28*$B105/$E$26)) ->  | AT105: =IF(AS105="","",(1-AT$28*$B105/$E$26)) -> 
G106: =IF(F106="","",(1-G$28*$B106/$E$26)) ->  | AD106: =IF(AC106="","",(1-AD$28*$B106/$E$26)) ->  | AT106: =IF(AS106="","",(1-AT$28*$B106/$E$26)) -> 
G107: =IF(F107="","",(1-G$28*$B107/$E$26)) ->  | AD107: =IF(AC107="","",(1-AD$28*$B107/$E$26)) ->  | AT107: =IF(AS107="","",(1-AT$28*$B107/$E$26)) -> 
G108: =IF(F108="","",(1-G$28*$B108/$E$26)) ->  | AD108: =IF(AC108="","",(1-AD$28*$B108/$E$26)) ->  | AT108: =IF(AS108="","",(1-AT$28*$B108/$E$26)) -> 
G109: =IF(F109="","",(1-G$28*$B109/$E$26)) ->  | AD109: =IF(AC109="","",(1-AD$28*$B109/$E$26)) ->  | AT109: =IF(AS109="","",(1-AT$28*$B109/$E$26)) -> 
G110: =IF(F110="","",(1-G$28*$B110/$E$26)) ->  | AD110: =IF(AC110="","",(1-AD$28*$B110/$E$26)) ->  | AT110: =IF(AS110="","",(1-AT$28*$B110/$E$26)) -> 
G111: =IF(F111="","",(1-G$28*$B111/$E$26)) ->  | AD111: =IF(AC111="","",(1-AD$28*$B111/$E$26)) ->  | AT111: =IF(AS111="","",(1-AT$28*$B111/$E$26)) -> 
G112: =IF(F112="","",(1-G$28*$B112/$E$26)) ->  | AD112: =IF(AC112="","",(1-AD$28*$B112/$E$26)) ->  | AT112: =IF(AS112="","",(1-AT$28*$B112/$E$26)) ->  | BJ112: =IF(BI112="","",(1-BJ$28*$B112/$E$26)) -> 
AD113: =IF(AC113="","",(1-AD$28*$B113/$E$26)) ->  | AT113: =IF(AS113="","",(1-AT$28*$B113/$E$26)) ->  | BJ113: =IF(BI113="","",(1-BJ$28*$B113/$E$26)) -> 
G114: =IF(F114="","",(1-G$28*$B114/$E$26)) ->  | P114: =IF(O114="","",(1-P$28*$B114/$E$26)) ->  | AD114: =IF(AC114="","",(1-AD$28*$B114/$E$26)) ->  | AT114: =IF(AS114="","",(1-AT$28*$B114/$E$26)) ->  | BJ114: =IF(BI114="","",(1-BJ$28*$B114/$E$26)) -> 
G115: =IF(F115="","",(1-G$28*$B115/$E$26)) -> 
G116: =IF(F116="","",(1-G$28*$B116/$E$26)) ->  | W116: =IF(V116="","",(1-W$28*$B116/$E$26)) ->  | AD116: =IF(AC116="","",(1-AD$28*$B116/$E$26)) ->  | AT116: =IF(AS116="","",(1-AT$28*$B116/$E$26)) ->  | BJ116: =IF(BI116="","",(1-BJ$28*$B116/$E$26)) -> 
G117: =IF(F117="","",(1-G$28*$B117/$E$26)) ->  | T117: =IF(S117="","",(1-T$28*$B117/$E$26)) ->  | W117: =IF(V117="","",(1-W$28*$B117/$E$26)) ->  | AD117: =IF(AC117="","",(1-AD$28*$B117/$E$26)) ->  | AT117: =IF(AS117="","",(1-AT$28*$B117/$E$26)) ->  | BJ117: =IF(BI117="","",(1-BJ$28*$B117/$E$26)) -> 
G118: =IF(F118="","",(1-G$28*$B118/$E$26)) ->  | W118: =IF(V118="","",(1-W$28*$B118/$E$26)) ->  | AD118: =IF(AC118="","",(1-AD$28*$B118/$E$26)) ->  | AT118: =IF(AS118="","",(1-AT$28*$B118/$E$26)) ->  | BJ118: =IF(BI118="","",(1-BJ$28*$B118/$E$26)) -> 
G119: =IF(F119="","",(1-G$28*$B119/$E$26)) ->  | W119: =IF(V119="","",(1-W$28*$B119/$E$26)) ->  | AD119: =IF(AC119="","",(1-AD$28*$B119/$E$26)) ->  | AT119: =IF(AS119="","",(1-AT$28*$B119/$E$26)) ->  | BJ119: =IF(BI119="","",(1-BJ$28*$B119/$E$26)) -> 
G120: =IF(F120="","",(1-G$28*$B120/$E$26)) ->  | W120: =IF(V120="","",(1-W$28*$B120/$E$26)) ->  | AD120: =IF(AC120="","",(1-AD$28*$B120/$E$26)) ->  | AT120: =IF(AS120="","",(1-AT$28*$B120/$E$26)) ->  | BJ120: =IF(BI120="","",(1-BJ$28*$B120/$E$26)) -> 
G121: =IF(F121="","",(1-G$28*$B121/$E$26)) ->  | W121: =IF(V121="","",(1-W$28*$B121/$E$26)) ->  | AD121: =IF(AC121="","",(1-AD$28*$B121/$E$26)) ->  | AT121: =IF(AS121="","",(1-AT$28*$B121/$E$26)) ->  | BJ121: =IF(BI121="","",(1-BJ$28*$B121/$E$26)) -> 
G122: =IF(F122="","",(1-G$28*$B122/$E$26)) ->  | W122: =IF(V122="","",(1-W$28*$B122/$E$26)) ->  | AD122: =IF(AC122="","",(1-AD$28*$B122/$E$26)) ->  | AT122: =IF(AS122="","",(1-AT$28*$B122/$E$26)) ->  | BJ122: =IF(BI122="","",(1-BJ$28*$B122/$E$26)) -> 
G123: =IF(F123="","",(1-G$28*$B123/$E$26)) ->  | W123: =IF(V123="","",(1-W$28*$B123/$E$26)) ->  | AD123: =IF(AC123="","",(1-AD$28*$B123/$E$26)) ->  | AT123: =IF(AS123="","",(1-AT$28*$B123/$E$26)) ->  | BJ123: =IF(BI123="","",(1-BJ$28*$B123/$E$26)) -> 
G124: =IF(F124="","",(1-G$28*$B124/$E$26)) ->  | W124: =IF(V124="","",(1-W$28*$B124/$E$26)) ->  | AD124: =IF(AC124="","",(1-AD$28*$B124/$E$26)) ->  | AT124: =IF(AS124="","",(1-AT$28*$B124/$E$26)) ->  | BJ124: =IF(BI124="","",(1-BJ$28*$B124/$E$26)) -> 
G125: =IF(F125="","",(1-G$28*$B125/$E$26)) ->  | W125: =IF(V125="","",(1-W$28*$B125/$E$26)) ->  | AD125: =IF(AC125="","",(1-AD$28*$B125/$E$26)) ->  | AT125: =IF(AS125="","",(1-AT$28*$B125/$E$26)) ->  | BJ125: =IF(BI125="","",(1-BJ$28*$B125/$E$26)) -> 
G126: =IF(F126="","",(1-G$28*$B126/$E$26)) ->  | W126: =IF(V126="","",(1-W$28*$B126/$E$26)) ->  | AD126: =IF(AC126="","",(1-AD$28*$B126/$E$26)) ->  | AT126: =IF(AS126="","",(1-AT$28*$B126/$E$26)) ->  | BJ126: =IF(BI126="","",(1-BJ$28*$B126/$E$26)) -> 
G127: =IF(F127="","",(1-G$28*$B127/$E$26)) ->  | W127: =IF(V127="","",(1-W$28*$B127/$E$26)) -> 
G128: =IF(F128="","",(1-G$28*$B128/$E$26)) ->  | W128: =IF(V128="","",(1-W$28*$B128/$E$26)) ->  | AD128: =IF(AC128="","",(1-AD$28*$B128/$E$26)) ->  | AT128: =IF(AS128="","",(1-AT$28*$B128/$E$26)) ->  | BJ128: =IF(BI128="","",(1-BJ$28*$B128/$E$26)) -> 
G129: =IF(F129="","",(1-G$28*$B129/$E$26)) ->  | W129: =IF(V129="","",(1-W$28*$B129/$E$26)) ->  | AD129: =IF(AC129="","",(1-AD$28*$B129/$E$26)) ->  | AT129: =IF(AS129="","",(1-AT$28*$B129/$E$26)) ->  | BJ129: =IF(BI129="","",(1-BJ$28*$B129/$E$26)) -> 
G130: =IF(F130="","",(1-G$28*$B130/$E$26)) ->  | W130: =IF(V130="","",(1-W$28*$B130/$E$26)) ->  | AD130: =IF(AC130="","",(1-AD$28*$B130/$E$26)) ->  | AT130: =IF(AS130="","",(1-AT$28*$B130/$E$26)) ->  | BJ130: =IF(BI130="","",(1-BJ$28*$B130/$E$26)) -> 
G131: =IF(F131="","",(1-G$28*$B131/$E$26)) ->  | W131: =IF(V131="","",(1-W$28*$B131/$E$26)) ->  | AD131: =IF(AC131="","",(1-AD$28*$B131/$E$26)) ->  | AT131: =IF(AS131="","",(1-AT$28*$B131/$E$26)) ->  | BJ131: =IF(BI131="","",(1-BJ$28*$B131/$E$26)) -> 
G132: =IF(F132="","",(1-G$28*$B132/$E$26)) ->  | W132: =IF(V132="","",(1-W$28*$B132/$E$26)) ->  | AD132: =IF(AC132="","",(1-AD$28*$B132/$E$26)) ->  | AT132: =IF(AS132="","",(1-AT$28*$B132/$E$26)) ->  | BJ132: =IF(BI132="","",(1-BJ$28*$B132/$E$26)) -> 
G133: =IF(F133="","",(1-G$28*$B133/$E$26)) ->  | W133: =IF(V133="","",(1-W$28*$B133/$E$26)) ->  | AD133: =IF(AC133="","",(1-AD$28*$B133/$E$26)) ->  | AT133: =IF(AS133="","",(1-AT$28*$B133/$E$26)) ->  | BJ133: =IF(BI133="","",(1-BJ$28*$B133/$E$26)) -> 
G134: =IF(F134="","",(1-G$28*$B134/$E$26)) ->  | P134: =IF(O134="","",(1-P$28*$B134/$E$26)) ->  | W134: =IF(V134="","",(1-W$28*$B134/$E$26)) ->  | AD134: =IF(AC134="","",(1-AD$28*$B134/$E$26)) ->  | AT134: =IF(AS134="","",(1-AT$28*$B134/$E$26)) ->  | BJ134: =IF(BI134="","",(1-BJ$28*$B134/$E$26)) -> 
G135: =IF(F135="","",(1-G$28*$B135/$E$26)) ->  | W135: =IF(V135="","",(1-W$28*$B135/$E$26)) ->  | AD135: =IF(AC135="","",(1-AD$28*$B135/$E$26)) ->  | AT135: =IF(AS135="","",(1-AT$28*$B135/$E$26)) ->  | BJ135: =IF(BI135="","",(1-BJ$28*$B135/$E$26)) -> 
G136: =IF(F136="","",(1-G$28*$B136/$E$26)) ->  | W136: =IF(V136="","",(1-W$28*$B136/$E$26)) ->  | AD136: =IF(AC136="","",(1-AD$28*$B136/$E$26)) ->  | AT136: =IF(AS136="","",(1-AT$28*$B136/$E$26)) ->  | BJ136: =IF(BI136="","",(1-BJ$28*$B136/$E$26)) -> 
G137: =IF(F137="","",(1-G$28*$B137/$E$26)) ->  | T137: =IF(S137="","",(1-T$28*$B137/$E$26)) ->  | W137: =IF(V137="","",(1-W$28*$B137/$E$26)) ->  | AD137: =IF(AC137="","",(1-AD$28*$B137/$E$26)) ->  | AT137: =IF(AS137="","",(1-AT$28*$B137/$E$26)) ->  | BJ137: =IF(BI137="","",(1-BJ$28*$B137/$E$26)) -> 
G138: =IF(F138="","",(1-G$28*$B138/$E$26)) ->  | W138: =IF(V138="","",(1-W$28*$B138/$E$26)) ->  | AD138: =IF(AC138="","",(1-AD$28*$B138/$E$26)) ->  | AT138: =IF(AS138="","",(1-AT$28*$B138/$E$26)) ->  | BJ138: =IF(BI138="","",(1-BJ$28*$B138/$E$26)) -> 
G139: =IF(F139="","",(1-G$28*$B139/$E$26)) ->  | W139: =IF(V139="","",(1-W$28*$B139/$E$26)) -> 
G140: =IF(F140="","",(1-G$28*$B140/$E$26)) ->  | W140: =IF(V140="","",(1-W$28*$B140/$E$26)) ->  | AD140: =IF(AC140="","",(1-AD$28*$B140/$E$26)) ->  | AT140: =IF(AS140="","",(1-AT$28*$B140/$E$26)) ->  | BJ140: =IF(BI140="","",(1-BJ$28*$B140/$E$26)) -> 
G141: =IF(F141="","",(1-G$28*$B141/$E$26)) ->  | W141: =IF(V141="","",(1-W$28*$B141/$E$26)) ->  | AD141: =IF(AC141="","",(1-AD$28*$B141/$E$26)) ->  | AT141: =IF(AS141="","",(1-AT$28*$B141/$E$26)) ->  | BJ141: =IF(BI141="","",(1-BJ$28*$B141/$E$26)) -> 
G142: =IF(F142="","",(1-G$28*$B142/$E$26)) ->  | W142: =IF(V142="","",(1-W$28*$B142/$E$26)) ->  | AD142: =IF(AC142="","",(1-AD$28*$B142/$E$26)) ->  | AT142: =IF(AS142="","",(1-AT$28*$B142/$E$26)) ->  | BJ142: =IF(BI142="","",(1-BJ$28*$B142/$E$26)) -> 
G143: =IF(F143="","",(1-G$28*$B143/$E$26)) ->  | W143: =IF(V143="","",(1-W$28*$B143/$E$26)) ->  | AD143: =IF(AC143="","",(1-AD$28*$B143/$E$26)) ->  | AT143: =IF(AS143="","",(1-AT$28*$B143/$E$26)) ->  | BJ143: =IF(BI143="","",(1-BJ$28*$B143/$E$26)) -> 
G144: =IF(F144="","",(1-G$28*$B144/$E$26)) ->  | W144: =IF(V144="","",(1-W$28*$B144/$E$26)) ->  | AD144: =IF(AC144="","",(1-AD$28*$B144/$E$26)) ->  | AT144: =IF(AS144="","",(1-AT$28*$B144/$E$26)) ->  | BJ144: =IF(BI144="","",(1-BJ$28*$B144/$E$26)) -> 
G145: =IF(F145="","",(1-G$28*$B145/$E$26)) ->  | W145: =IF(V145="","",(1-W$28*$B145/$E$26)) ->  | AD145: =IF(AC145="","",(1-AD$28*$B145/$E$26)) ->  | AT145: =IF(AS145="","",(1-AT$28*$B145/$E$26)) ->  | BJ145: =IF(BI145="","",(1-BJ$28*$B145/$E$26)) -> 
G146: =IF(F146="","",(1-G$28*$B146/$E$26)) ->  | W146: =IF(V146="","",(1-W$28*$B146/$E$26)) ->  | AD146: =IF(AC146="","",(1-AD$28*$B146/$E$26)) ->  | AT146: =IF(AS146="","",(1-AT$28*$B146/$E$26)) ->  | BJ146: =IF(BI146="","",(1-BJ$28*$B146/$E$26)) -> 
G147: =IF(F147="","",(1-G$28*$B147/$E$26)) ->  | W147: =IF(V147="","",(1-W$28*$B147/$E$26)) ->  | AD147: =IF(AC147="","",(1-AD$28*$B147/$E$26)) ->  | AT147: =IF(AS147="","",(1-AT$28*$B147/$E$26)) ->  | BJ147: =IF(BI147="","",(1-BJ$28*$B147/$E$26)) -> 
G148: =IF(F148="","",(1-G$28*$B148/$E$26)) ->  | W148: =IF(V148="","",(1-W$28*$B148/$E$26)) ->  | AD148: =IF(AC148="","",(1-AD$28*$B148/$E$26)) ->  | AT148: =IF(AS148="","",(1-AT$28*$B148/$E$26)) ->  | BJ148: =IF(BI148="","",(1-BJ$28*$B148/$E$26)) -> 
G149: =IF(F149="","",(1-G$28*$B149/$E$26)) ->  | W149: =IF(V149="","",(1-W$28*$B149/$E$26)) ->  | AD149: =IF(AC149="","",(1-AD$28*$B149/$E$26)) ->  | AT149: =IF(AS149="","",(1-AT$28*$B149/$E$26)) ->  | BJ149: =IF(BI149="","",(1-BJ$28*$B149/$E$26)) -> 
G150: =IF(F150="","",(1-G$28*$B150/$E$26)) ->  | W150: =IF(V150="","",(1-W$28*$B150/$E$26)) ->  | AD150: =IF(AC150="","",(1-AD$28*$B150/$E$26)) ->  | AT150: =IF(AS150="","",(1-AT$28*$B150/$E$26)) ->  | BJ150: =IF(BI150="","",(1-BJ$28*$B150/$E$26)) -> 
G151: =IF(F151="","",(1-G$28*$B151/$E$26)) ->  | W151: =IF(V151="","",(1-W$28*$B151/$E$26)) -> 
G152: =IF(F152="","",(1-G$28*$B152/$E$26)) ->  | W152: =IF(V152="","",(1-W$28*$B152/$E$26)) ->  | AD152: =IF(AC152="","",(1-AD$28*$B152/$E$26)) ->  | AT152: =IF(AS152="","",(1-AT$28*$B152/$E$26)) ->  | BJ152: =IF(BI152="","",(1-BJ$28*$B152/$E$26)) -> 
G153: =IF(F153="","",(1-G$28*$B153/$E$26)) ->  | W153: =IF(V153="","",(1-W$28*$B153/$E$26)) ->  | AD153: =IF(AC153="","",(1-AD$28*$B153/$E$26)) ->  | AT153: =IF(AS153="","",(1-AT$28*$B153/$E$26)) ->  | BJ153: =IF(BI153="","",(1-BJ$28*$B153/$E$26)) -> 
G154: =IF(F154="","",(1-G$28*$B154/$E$26)) ->  | P154: =IF(O154="","",(1-P$28*$B154/$E$26)) ->  | W154: =IF(V154="","",(1-W$28*$B154/$E$26)) ->  | AD154: =IF(AC154="","",(1-AD$28*$B154/$E$26)) ->  | AT154: =IF(AS154="","",(1-AT$28*$B154/$E$26)) ->  | BJ154: =IF(BI154="","",(1-BJ$28*$B154/$E$26)) -> 
G155: =IF(F155="","",(1-G$28*$B155/$E$26)) ->  | W155: =IF(V155="","",(1-W$28*$B155/$E$26)) ->  | AD155: =IF(AC155="","",(1-AD$28*$B155/$E$26)) ->  | AT155: =IF(AS155="","",(1-AT$28*$B155/$E$26)) ->  | BJ155: =IF(BI155="","",(1-BJ$28*$B155/$E$26)) -> 
G156: =IF(F156="","",(1-G$28*$B156/$E$26)) ->  | W156: =IF(V156="","",(1-W$28*$B156/$E$26)) ->  | AD156: =IF(AC156="","",(1-AD$28*$B156/$E$26)) ->  | AT156: =IF(AS156="","",(1-AT$28*$B156/$E$26)) ->  | BJ156: =IF(BI156="","",(1-BJ$28*$B156/$E$26)) -> 
G157: =IF(F157="","",(1-G$28*$B157/$E$26)) ->  | T157: =IF(S157="","",(1-T$28*$B157/$E$26)) ->  | W157: =IF(V157="","",(1-W$28*$B157/$E$26)) ->  | AD157: =IF(AC157="","",(1-AD$28*$B157/$E$26)) ->  | AT157: =IF(AS157="","",(1-AT$28*$B157/$E$26)) ->  | BJ157: =IF(BI157="","",(1-BJ$28*$B157/$E$26)) -> 
G158: =IF(F158="","",(1-G$28*$B158/$E$26)) ->  | W158: =IF(V158="","",(1-W$28*$B158/$E$26)) ->  | AD158: =IF(AC158="","",(1-AD$28*$B158/$E$26)) ->  | AT158: =IF(AS158="","",(1-AT$28*$B158/$E$26)) ->  | BJ158: =IF(BI158="","",(1-BJ$28*$B158/$E$26)) -> 
G159: =IF(F159="","",(1-G$28*$B159/$E$26)) ->  | W159: =IF(V159="","",(1-W$28*$B159/$E$26)) ->  | AC159: =IF(AB159="","",(1-AC$28*$B159/$E$26)) ->  | AT159: =IF(AS159="","",(1-AT$28*$B159/$E$26)) ->  | BJ159: =IF(BI159="","",(1-BJ$28*$B159/$E$26)) -> 
C160: =IF(B160="","",(1-C$28*$B160/$E$26)) ->  | K160: =IF(J160="","",(1-K$28*$B160/$E$26)) ->  | W160: =IF(V160="","",(1-W$28*$B160/$E$26)) ->  | AT160: =IF(AS160="","",(1-AT$28*$B160/$E$26)) ->  | BJ160: =IF(BI160="","",(1-BJ$28*$B160/$E$26)) -> 
K161: =IF(J161="","",(1-K$28*$B161/$E$26)) ->  | L161: =IF(K161="","",(1-L$28*$B161/$E$26)) ->  | M161: =IF(L161="","",(1-M$28*$B161/$E$26)) ->  | N161: =IF(M161="","",(1-N$28*$B161/$E$26)) ->  | O161: =IF(N161="","",(1-O$28*$B161/$E$26)) ->  | W161: =IF(V161="","",(1-W$28*$B161/$E$26)) ->  | X161: =IF(W161="","",(1-X$28*$B161/$E$26)) ->  | AT161: =IF(AS161="","",(1-AT$28*$B161/$E$26)) ->  | BJ161: =IF(BI161="","",(1-BJ$28*$B161/$E$26)) -> 
K162: =IF(J162="","",(1-K$28*$B162/$E$26)) ->  | W162: =IF(V162="","",(1-W$28*$B162/$E$26)) ->  | AT162: =IF(AS162="","",(1-AT$28*$B162/$E$26)) ->  | BJ162: =IF(BI162="","",(1-BJ$28*$B162/$E$26)) -> 
J163: =IF(I163="","",(1-J$28*$B163/$E$26)) ->  | W163: =IF(V163="","",(1-W$28*$B163/$E$26)) ->  | AM163: =IF(AL163="","",(1-AM$28*$B163/$E$26)) -> 
J164: =IF(I164="","",(1-J$28*$B164/$E$26)) ->  | AT164: =IF(AS164="","",(1-AT$28*$B164/$E$26)) ->  | BJ164: =IF(BI164="","",(1-BJ$28*$B164/$E$26)) -> 
J165: =IF(I165="","",(1-J$28*$B165/$E$26)) ->  | AT165: =IF(AS165="","",(1-AT$28*$B165/$E$26)) ->  | BJ165: =IF(BI165="","",(1-BJ$28*$B165/$E$26)) -> 
J166: =IF(I166="","",(1-J$28*$B166/$E$26)) ->  | AT166: =IF(AS166="","",(1-AT$28*$B166/$E$26)) ->  | BJ166: =IF(BI166="","",(1-BJ$28*$B166/$E$26)) -> 
J167: =IF(I167="","",(1-J$28*$B167/$E$26)) ->  | AT167: =IF(AS167="","",(1-AT$28*$B167/$E$26)) ->  | BJ167: =IF(BI167="","",(1-BJ$28*$B167/$E$26)) -> 
J168: =IF(I168="","",(1-J$28*$B168/$E$26)) ->  | AT168: =IF(AS168="","",(1-AT$28*$B168/$E$26)) ->  | BJ168: =IF(BI168="","",(1-BJ$28*$B168/$E$26)) -> 
J169: =IF(I169="","",(1-J$28*$B169/$E$26)) ->  | AT169: =IF(AS169="","",(1-AT$28*$B169/$E$26)) ->  | BJ169: =IF(BI169="","",(1-BJ$28*$B169/$E$26)) -> 
J170: =IF(I170="","",(1-J$28*$B170/$E$26)) ->  | AG170: =IF(AF170="","",(1-AG$28*$B170/$E$26)) ->  | AM170: =IF(AL170="","",(1-AM$28*$B170/$E$26)) ->  | BJ170: =IF(BI170="","",(1-BJ$28*$B170/$E$26)) -> 
J171: =IF(I171="","",(1-J$28*$B171/$E$26)) ->  | AM171: =IF(AL171="","",(1-AM$28*$B171/$E$26)) ->  | BJ171: =IF(BI171="","",(1-BJ$28*$B171/$E$26)) -> 
J172: =IF(I172="","",(1-J$28*$B172/$E$26)) ->  | AM172: =IF(AL172="","",(1-AM$28*$B172/$E$26)) ->  | BJ172: =IF(BI172="","",(1-BJ$28*$B172/$E$26)) -> 
J173: =IF(I173="","",(1-J$28*$B173/$E$26)) ->  | AM173: =IF(AL173="","",(1-AM$28*$B173/$E$26)) ->  | BJ173: =IF(BI173="","",(1-BJ$28*$B173/$E$26)) -> 
J174: =IF(I174="","",(1-J$28*$B174/$E$26)) ->  | P174: =IF(O174="","",(1-P$28*$B174/$E$26)) ->  | AM174: =IF(AL174="","",(1-AM$28*$B174/$E$26)) ->  | BB174: =IF(BA174="","",(1-BB$28*$B174/$E$26)) -> 
J175: =IF(I175="","",(1-J$28*$B175/$E$26)) -> 
J176: =IF(I176="","",(1-J$28*$B176/$E$26)) ->  | AM176: =IF(AL176="","",(1-AM$28*$B176/$E$26)) ->  | BB176: =IF(BA176="","",(1-BB$28*$B176/$E$26)) -> 
J177: =IF(I177="","",(1-J$28*$B177/$E$26)) ->  | T177: =IF(S177="","",(1-T$28*$B177/$E$26)) ->  | AM177: =IF(AL177="","",(1-AM$28*$B177/$E$26)) ->  | BB177: =IF(BA177="","",(1-BB$28*$B177/$E$26)) -> 
J178: =IF(I178="","",(1-J$28*$B178/$E$26)) ->  | AM178: =IF(AL178="","",(1-AM$28*$B178/$E$26)) ->  | BB178: =IF(BA178="","",(1-BB$28*$B178/$E$26)) -> 
J179: =IF(I179="","",(1-J$28*$B179/$E$26)) ->  | AM179: =IF(AL179="","",(1-AM$28*$B179/$E$26)) ->  | BB179: =IF(BA179="","",(1-BB$28*$B179/$E$26)) -> 
J180: =IF(I180="","",(1-J$28*$B180/$E$26)) ->  | AG180: =IF(AF180="","",(1-AG$28*$B180/$E$26)) ->  | AM180: =IF(AL180="","",(1-AM$28*$B180/$E$26)) ->  | BB180: =IF(BA180="","",(1-BB$28*$B180/$E$26)) -> 
J181: =IF(I181="","",(1-J$28*$B181/$E$26)) ->  | AM181: =IF(AL181="","",(1-AM$28*$B181/$E$26)) ->  | BB181: =IF(BA181="","",(1-BB$28*$B181/$E$26)) -> 
J182: =IF(I182="","",(1-J$28*$B182/$E$26)) ->  | AM182: =IF(AL182="","",(1-AM$28*$B182/$E$26)) ->  | BB182: =IF(BA182="","",(1-BB$28*$B182/$E$26)) -> 
J183: =IF(I183="","",(1-J$28*$B183/$E$26)) ->  | AM183: =IF(AL183="","",(1-AM$28*$B183/$E$26)) ->  | BB183: =IF(BA183="","",(1-BB$28*$B183/$E$26)) -> 
J184: =IF(I184="","",(1-J$28*$B184/$E$26)) ->  | AM184: =IF(AL184="","",(1-AM$28*$B184/$E$26)) ->  | BB184: =IF(BA184="","",(1-BB$28*$B184/$E$26)) -> 
J185: =IF(I185="","",(1-J$28*$B185/$E$26)) ->  | AM185: =IF(AL185="","",(1-AM$28*$B185/$E$26)) ->  | BB185: =IF(BA185="","",(1-BB$28*$B185/$E$26)) -> 
J186: =IF(I186="","",(1-J$28*$B186/$E$26)) ->  | AM186: =IF(AL186="","",(1-AM$28*$B186/$E$26)) ->  | BB186: =IF(BA186="","",(1-BB$28*$B186/$E$26)) -> 
J187: =IF(I187="","",(1-J$28*$B187/$E$26)) ->  | BA187: =IF(AZ187="","",(1-BA$28*$B187/$E$26)) -> 
J188: =IF(I188="","",(1-J$28*$B188/$E$26)) ->  | AM188: =IF(AL188="","",(1-AM$28*$B188/$E$26)) ->  | BB188: =IF(BA188="","",(1-BB$28*$B188/$E$26)) -> 
J189: =IF(I189="","",(1-J$28*$B189/$E$26)) ->  | AM189: =IF(AL189="","",(1-AM$28*$B189/$E$26)) ->  | BB189: =IF(BA189="","",(1-BB$28*$B189/$E$26)) -> 
J190: =IF(I190="","",(1-J$28*$B190/$E$26)) ->  | AG190: =IF(AF190="","",(1-AG$28*$B190/$E$26)) ->  | AM190: =IF(AL190="","",(1-AM$28*$B190/$E$26)) ->  | BA190: =IF(AZ190="","",(1-BA$28*$B190/$E$26)) -> 
J191: =IF(I191="","",(1-J$28*$B191/$E$26)) ->  | AM191: =IF(AL191="","",(1-AM$28*$B191/$E$26)) ->  | BA191: =IF(AZ191="","",(1-BA$28*$B191/$E$26)) -> 
J192: =IF(I192="","",(1-J$28*$B192/$E$26)) ->  | AM192: =IF(AL192="","",(1-AM$28*$B192/$E$26)) ->  | BA192: =IF(AZ192="","",(1-BA$28*$B192/$E$26)) -> 
J193: =IF(I193="","",(1-J$28*$B193/$E$26)) ->  | AM193: =IF(AL193="","",(1-AM$28*$B193/$E$26)) ->  | BA193: =IF(AZ193="","",(1-BA$28*$B193/$E$26)) -> 
J194: =IF(I194="","",(1-J$28*$B194/$E$26)) ->  | P194: =IF(O194="","",(1-P$28*$B194/$E$26)) ->  | AM194: =IF(AL194="","",(1-AM$28*$B194/$E$26)) ->  | BA194: =IF(AZ194="","",(1-BA$28*$B194/$E$26)) -> 
J195: =IF(I195="","",(1-J$28*$B195/$E$26)) ->  | AM195: =IF(AL195="","",(1-AM$28*$B195/$E$26)) ->  | BA195: =IF(AZ195="","",(1-BA$28*$B195/$E$26)) -> 

Sheet COMPARATIVA DE MÉTODOS
C2: % ACIERTO | E2: =COUNTIF(D9:D108,"T.P")/100 -> 0.57 | G2: B/R | H2: 2
E4: Esperanza Matemática Positiva
E6: RIESGOS FIJOS | G6: RIESGOS VARIABLES | J6: MONTO Y FRACCIÓN DE RIESGO EMPLEADO
C7: N° Op. | D7: RESULTADO | E7: MONTO FIJO | F7: % FIJO (1%) | G7: F KELLY | H7: F ÓPTIMA | J7: MONTO FIJO $50 | K7: % FIJO 1% | L7: F KELLY | M7: F ÓPTIMA
E8: 5000 | F8: 5000 | G8: 5000 | H8: 5000
C9: 1 | D9: T.P | E9: =IF(D9="T.P",E8+(J9*$H$2),E8-(J9)) -> 5100 | F9: =IF(D9="T.P",F8+(F8*K9*$H$2),F8-(F8*K9)) -> 5100 | G9: =IF(D9="T.P",G8+(G8*L9*$H$2),G8-(G8*L9)) -> 5100 | H9: =IF(D9="T.P",H8+(H8*M9*$H$2),H8-(H8*M9)) -> 5100 | J9: 50 | K9: 0.01 | L9: 0.01 | M9: 0.01
C10: 2 | D10: S.L | E10: =IF(D10="T.P",E9+(J10*$H$2),E9-(J10)) -> 5050 | F10: =IF(D10="T.P",F9+(F9*K10*$H$2),F9-(F9*K10)) -> 5049 | G10: =IF(D10="T.P",G9+(G9*L10*$H$2),G9-(G9*L10)) -> 5049 | H10: =IF(D10="T.P",H9+(H9*M10*$H$2),H9-(H9*M10)) -> 5049 | J10: 50 | K10: 0.01 | L10: 0.01 | M10: 0.01
C11: 3 | D11: S.L | E11: 5000 | F11: 4998.51 | G11: 4998.51 | H11: 4998.51 | J11: 50 | K11: 0.01 | L11: 0.01 | M11: 0.01
C12: 4 | D12: T.P | E12: 5100 | F12: 5098.4802 | G12: 5098.4802 | H12: 5098.4802 | J12: 50 | K12: 0.01 | L12: 0.01 | M12: 0.01
C13: 5 | D13: T.P | E13: 5200 | F13: 5200.449804 | G13: 5200.449804 | H13: 5200.449804 | J13: 50 | K13: 0.01 | L13: 0.01 | M13: 0.01
C14: 6 | D14: T.P | E14: 5300 | F14: 5304.4588 | G14: 5304.4588 | H14: 5304.4588 | J14: 50 | K14: 0.01 | L14: 0.01 | M14: 0.01
C15: 7 | D15: T.P | E15: 5400 | F15: 5410.547976 | G15: 5410.547976 | H15: 5410.547976 | J15: 50 | K15: 0.01 | L15: 0.01 | M15: 0.01 | O15: ASI CON UN CAPITAL INICIAL DE $5000
C16: 8 | D16: S.L | E16: 5350 | F16: 5356.442496 | G16: 5356.442496 | H16: 5356.442496 | J16: 50 | K16: 0.01 | L16: 0.01 | M16: 0.01 | O16: EMPLEANDO EL MÉTODO DE MONTO FIJO SE OBTUVO UN CAPITAL FINAL DE | V16: 8550
C17: 9 | D17: S.L | E17: 5300 | F17: 5302.878071 | G17: 5302.878071 | H17: 5302.878071 | J17: 50 | K17: 0.01 | L17: 0.01 | M17: 0.01 | O17: EMPLEANDO EL MÉTODO DE PORCENTAJE FIJO (1%) SE OBTUVO UN CAPITAL FINAL DE | V17: 10034.44051
C18: 10 | D18: S.L | E18: 5250 | F18: 5249.849291 | G18: 5249.849291 | H18: 5249.849291 | J18: 50 | K18: 0.01 | L18: 0.01 | M18: 0.01 | O18: EMPLEANDO EL MÉTODO DE F DE KELLY SE OBTUVO UN CAPITAL FINAL DE | V18: 41596.57119
C19: 11 | D19: S.L | E19: 5200 | F19: 5197.350798 | G19: 5197.350798 | H19: 5197.350798 | J19: 50 | K19: 0.01 | L19: 0.01 | M19: 0.01 | O19: EMPLEANDO EL MÉTODO DE F ÓPTIMA SE OBTUVO UN CAPITAL FINAL DE | V19: 117864.584
C20: 12 | D20: T.P | E20: 5300 | F20: 5301.297814 | G20: 5301.297814 | H20: 5301.297814 | J20: 50 | K20: 0.01 | L20: 0.01 | M20: 0.01
C21: 13 | D21: T.P | E21: 5400 | F21: 5407.32377 | G21: 5407.32377 | H21: 5407.32377 | J21: 50 | K21: 0.01 | L21: 0.01 | M21: 0.01 | O21: TANTO LA F DE KELLY Y LA F OPTIMA SON METODOS AGRESIVOS
C22: 14 | D22: T.P | E22: 5500 | F22: 5515.470245 | G22: 5515.470245 | H22: 5515.470245 | J22: 50 | K22: 0.01 | L22: 0.01 | M22: 0.01 | O22: COMO VEZ TIENEN OSCILACIONES BASTANTE VISIBLES
C23: 15 | D23: S.L | E23: 5450 | F23: 5460.315543 | G23: 5460.315543 | H23: 5460.315543 | J23: 50 | K23: 0.01 | L23: 0.01 | M23: 0.01 | O23: CUANDO GANAN, CADA VEZ ARRIESGAN MÁS (PRESIONAN EL ACELERADOR)
C24: 16 | D24: T.P | E24: 5550 | F24: 5569.521854 | G24: 5783.566223 | H24: 5787.934475 | J24: 50 | K24: 0.01 | L24: 0.0296 | M24: 0.03 | O24: Y CUANDO PIERDEN, ARRIESGAN CADA VEZ MENOS (PRESIONAN EL FRENO)
C25: 17 | D25: T.P | E25: 5650 | F25: 5680.912291 | G25: 6225.430682 | H25: 6227.817496 | J25: 50 | K25: 0.01 | L25: 0.0382 | M25: 0.038
C26: 18 | D26: S.L | E26: 5600 | F26: 5624.103168 | G26: 5944.041216 | H26: =IF(D26="T.P",H25+(H25*M26*$H$2),H25-(H25*M26)) -> 5953.793526 | J26: 50 | K26: 0.01 | L26: 0.0452 | M26: 0.044
C27: 19 | D27: S.L | E27: 5550 | F27: 5567.862136 | G27: 5748.48226 | H27: 5596.565914 | J27: 50 | K27: 0.01 | L27: 0.0329 | M27: 0.06
C28: 20 | D28: T.P | E28: 5650 | F28: 5679.219379 | G28: 6032.457283 | H28: 5977.132396 | J28: 50 | K28: 0.01 | L28: 0.0247 | M28: 0.034
C29: 21 | D29: S.L | E29: 5600 | F29: 5622.427185 | G29: 5850.277073 | H29: 5702.184306 | J29: 50 | K29: 0.01 | L29: 0.0302 | M29: 0.046
C30: 22 | D30: T.P | E30: 5700 | F30: 5734.875729 | G30: 6127.580207 | H30: 6044.315365 | J30: 50 | K30: 0.01 | L30: 0.0237 | M30: 0.03
C31: 23 | D31: S.L | E31: 5650 | F31: 5677.526972 | G31: 5952.944171 | H31: 5802.54275 | J31: 50 | K31: 0.01 | L31: 0.0285 | M31: 0.04
C32: 24 | D32: S.L | E32: 5600 | F32: 5620.751702 | G32: 5815.43116 | H32: 5628.466467 | J32: 50 | K32: 0.01 | L32: 0.0231 | M32: 0.03
C33: 25 | D33: T.P | E33: 5700 | F33: 5733.166736 | G33: 6035.254458 | H33: 5876.118992 | J33: 50 | K33: 0.01 | L33: 0.0189 | M33: 0.022
C34: 26 | D34: S.L | E34: 5650 | F34: 5675.835069 | G34: 5898.254182 | H34: 5699.835422 | J34: 50 | K34: 0.01 | L34: 0.0227 | M34: 0.03
C35: 27 | D35: T.P | E35: 5750 | F35: 5789.35177 | G35: 6121.20819 | H35: 5950.628181 | J35: 50 | K35: 0.01 | L35: 0.0189 | M35: 0.022
C36: 28 | D36: T.P | E36: 5850 | F36: 5905.138805 | G36: 6395.438317 | H36: 6307.665872 | J36: 50 | K36: 0.01 | L36: 0.0224 | M36: 0.03
C37: 29 | D37: S.L | E37: 5800 | F37: 5846.087417 | G37: 6229.156921 | H37: 6067.974569 | J37: 50 | K37: 0.01 | L37: 0.026 | M37: 0.038
C38: 30 | D38: T.P | E38: 5900 | F38: 5963.009166 | G38: 6504.485657 | H38: 6407.781144 | J38: 50 | K38: 0.01 | L38: 0.0221 | M38: 0.028
C39: 31 | D39: S.L | E39: 5850 | F39: 5903.379074 | G39: 6338.621272 | H39: 6177.101023 | J39: 50 | K39: 0.01 | L39: 0.0255 | M39: 0.036
C40: 32 | D40: T.P | E40: 5950 | F40: 6021.446655 | G40: 6616.252884 | H40: 6523.018681 | J40: 50 | K40: 0.01 | L40: 0.0219 | M40: 0.028
C41: 33 | D41: T.P | E41: 6050 | F41: 6141.875589 | G41: 6948.388779 | H41: 6966.583951 | J41: 50 | K41: 0.01 | L41: 0.0251 | M41: 0.034
C42: 34 | D42: S.L | E42: 6000 | F42: 6080.456833 | G42: 6751.749377 | H42: 6687.920593 | J42: 50 | K42: 0.01 | L42: 0.0283 | M42: 0.04
C43: 35 | D43: T.P | E43: 6100 | F43: 6202.065969 | G43: 7085.285796 | H43: 7142.699193 | J43: 50 | K43: 0.01 | L43: 0.0247 | M43: 0.034
C44: 36 | D44: T.P | E44: 6200 | F44: 6326.107289 | G44: 7477.810629 | H44: 7685.544332 | J44: 50 | K44: 0.01 | L44: 0.0277 | M44: 0.038
C45: 37 | D45: S.L | E45: 6150 | F45: 6262.846216 | G45: 7248.241842 | H45: 7347.380381 | J45: 50 | K45: 0.01 | L45: 0.0307 | M45: 0.044
C46: 38 | D46: T.P | E46: 6250 | F46: 6388.10314 | G46: 7641.09655 | H46: 7876.391769 | J46: 50 | K46: 0.01 | L46: 0.0271 | M46: 0.036
C47: 39 | D47: T.P | E47: 6350 | F47: 6515.865203 | G47: 8098.034124 | H47: 8506.50311 | J47: 50 | K47: 0.01 | L47: 0.0299 | M47: 0.04
C48: 40 | D48: S.L | E48: 6300 | F48: 6450.706551 | G48: 7832.418605 | H48: 8115.203967 | J48: 50 | K48: 0.01 | L48: 0.0328 | M48: 0.046
C49: 41 | D49: T.P | E49: 6400 | F49: 6579.720682 | G49: 8289.831851 | H49: 8764.420284 | J49: 50 | K49: 0.01 | L49: 0.0292 | M49: 0.04
C50: 42 | D50: T.P | E50: 6500 | F50: 6711.315096 | G50: 8818.723123 | H50: 9570.746951 | J50: 50 | K50: 0.01 | L50: 0.0319 | M50: 0.046
C51: 43 | D51: S.L | E51: 6450 | F51: 6644.201945 | G51: 8514.477176 | H51: 9092.209603 | J51: 50 | K51: 0.01 | L51: 0.0345 | M51: 0.05
C52: 44 | D52: T.P | E52: 6550 | F52: 6777.085984 | G52: 9042.374761 | H52: 9965.061725 | J52: 50 | K52: 0.01 | L52: 0.031 | M52: 0.048
C53: 45 | D53: T.P | E53: 6650 | F53: 6912.627703 | G53: 9648.21387 | H53: 11041.28839 | J53: 50 | K53: 0.01 | L53: 0.0335 | M53: 0.054
C54: 46 | D54: S.L | E54: 6600 | F54: 6843.501426 | G54: 9300.87817 | H54: 10400.89366 | J54: 50 | K54: 0.01 | L54: 0.036 | M54: 0.058
C55: 47 | D55: T.P | E55: 6700 | F55: 6980.371455 | G55: 9907.295427 | H55: 11607.39733 | J55: 50 | K55: 0.01 | L55: 0.0326 | M55: 0.058
C56: 48 | D56: T.P | E56: 6800 | F56: 7119.978884 | G56: 10600.80611 | H56: 13046.7146 | J56: 50 | K56: 0.01 | L56: 0.035 | M56: 0.062
C57: 49 | D57: T.P | E57: 6900 | F57: 7262.378461 | G57: 11391.62624 | H57: 14768.88093 | J57: 50 | K57: 0.01 | L57: 0.0373 | M57: 0.066
C58: 50 | D58: T.P | E58: 7000 | F58: 7407.626031 | G58: 12293.84304 | H58: 16836.52426 | J58: 50 | K58: 0.01 | L58: 0.0396 | M58: 0.07
C59: 51 | D59: S.L | E59: 6950 | F59: 7333.54977 | G59: 11778.73102 | H59: 15590.62146 | J59: 50 | K59: 0.01 | L59: 0.0419 | M59: 0.074
C60: 52 | D60: T.P | E60: 7050 | F60: 7480.220766 | G60: 12678.62607 | H60: 17960.39592 | J60: 50 | K60: 0.01 | L60: 0.0382 | M60: 0.076
C61: 53 | D61: T.P | E61: 7150 | F61: 7629.825181 | G61: 13700.52333 | H61: 20762.21769 | J61: 50 | K61: 0.01 | L61: 0.0403 | M61: 0.078
C62: 54 | D62: T.P | E62: 7250 | F62: 7782.421685 | G62: 14865.06781 | H62: 24084.17252 | J62: 50 | K62: 0.01 | L62: 0.0425 | M62: 0.08
C63: 55 | D63: S.L | E63: 7200 | F63: 7704.597468 | G63: 14203.57229 | H63: 22061.10202 | J63: 50 | K63: 0.01 | L63: 0.0445 | M63: 0.084
C64: 56 | D64: T.P | E64: 7300 | F64: 7858.689417 | G64: 15362.58379 | H64: 25414.38953 | J64: 50 | K64: 0.01 | L64: 0.0408 | M64: 0.076
C65: 57 | D65: S.L | E65: 7250 | F65: 7780.102523 | G65: 14705.06521 | H65: 23381.23837 | J65: 50 | K65: 0.01 | L65: 0.0428 | M65: 0.08
C66: 58 | D66: T.P | E66: 7350 | F66: 7935.704574 | G66: 15863.82434 | H66: 26467.56183 | J66: 50 | K66: 0.01 | L66: 0.0394 | M66: 0.066
C67: 59 | D67: T.P | E67: 7450 | F67: 8094.418665 | G67: 17177.349 | H67: 30067.15024 | J67: 50 | K67: 0.01 | L67: 0.0414 | M67: 0.068
C68: 60 | D68: T.P | E68: 7550 | F68: 8256.307038 | G68: 18664.90742 | H68: 34396.81988 | J68: 50 | K68: 0.01 | L68: 0.0433 | M68: 0.072
C69: 61 | D69: T.P | E69: 7650 | F69: 8421.433179 | G69: 20352.21505 | H69: 39487.54922 | J69: 50 | K69: 0.01 | L69: 0.0452 | M69: 0.074
C70: 62 | D70: T.P | E70: 7750 | F70: 8589.861843 | G70: 22265.32327 | H70: 45489.6567 | J70: 50 | K70: 0.01 | L70: 0.047 | M70: 0.076
C71: 63 | D71: S.L | E71: 7700 | F71: 8503.963224 | G71: 21178.77549 | H71: 41941.46348 | J71: 50 | K71: 0.01 | L71: 0.0488 | M71: 0.078
C72: 64 | D72: S.L | E72: 7650 | F72: 8418.923592 | G72: 20225.7306 | H72: 38586.1464 | J72: 50 | K72: 0.01 | L72: 0.045 | M72: 0.08
C73: 65 | D73: S.L | E73: 7600 | F73: 8334.734356 | G73: 19382.31763 | H73: 35962.28845 | J73: 50 | K73: 0.01 | L73: 0.0417 | M73: 0.068
C74: 66 | D74: T.P | E74: =IF(D74="T.P",E73+(J74*$H$2),E73-(J74)) -> 7700 | F74: =IF(D74="T.P",F73+(F73*K74*$H$2),F73-(F73*K74)) -> 8501.429043 | G74: =IF(D74="T.P",G73+(G73*L74*$H$2),G73-(G73*L74)) -> 20886.38548 | H74: =IF(D74="T.P",H73+(H73*M74*$H$2),H73-(H73*M74)) -> 40277.76306 | J74: 50 | K74: 0.01 | L74: 0.0388 | M74: 0.06
C75: 67 | D75: T.P | E75: 7800 | F75: 8671.457624 | G75: 22578.1827 | H75: 45433.31673 | J75: 50 | K75: 0.01 | L75: 0.0405 | M75: 0.064
C76: 68 | D76: T.P | E76: 7900 | F76: 8844.886777 | G76: 24488.29696 | H76: 51612.24781 | J76: 50 | K76: 0.01 | L76: 0.0423 | M76: 0.068
C77: 69 | D77: T.P | E77: 8000 | F77: 9021.784512 | G77: 26643.26709 | H77: 58837.9625 | J77: 50 | K77: 0.01 | L77: 0.044 | M77: 0.07
C78: 70 | D78: T.P | E78: 8100 | F78: 9202.220202 | G78: 29078.4617 | H78: 67310.6291 | J78: 50 | K78: 0.01 | L78: 0.0457 | M78: 0.072
C79: 71 | D79: T.P | E79: 8200 | F79: 9386.264606 | G79: 31835.09987 | H79: 77541.84472 | J79: 50 | K79: 0.01 | L79: 0.0474 | M79: 0.076
C80: 72 | D80: T.P | E80: 8300 | F80: 9573.989898 | G80: 34954.93966 | H80: 89638.3725 | J80: 50 | K80: 0.01 | L80: 0.049 | M80: 0.078
C81: 73 | D81: T.P | E81: 8400 | F81: 9765.469696 | G81: 38492.37956 | H81: 103980.5121 | J81: 50 | K81: 0.01 | L81: 0.0506 | M81: 0.08
C82: 74 | D82: S.L | E82: 8350 | F82: 9667.814999 | G82: 36486.92658 | H82: 95662.07113 | J82: 50 | K82: 0.01 | L82: 0.0521 | M82: 0.08
C83: 75 | D83: T.P | E83: 8450 | F83: 9861.171299 | G83: 40011.56369 | H83: 111733.2991 | J83: 50 | K83: 0.01 | L83: 0.0483 | M83: 0.084
C84: 76 | D84: T.P | E84: 8550 | F84: 10058.39473 | G84: 44004.71774 | H84: 130504.4933 | J84: 50 | K84: 0.01 | L84: 0.0499 | M84: 0.084
C85: 77 | D85: T.P | E85: 8650 | F85: 10259.56262 | G85: 48528.40273 | H85: 152951.2662 | J85: 50 | K85: 0.01 | L85: 0.0514 | M85: 0.086
C86: 78 | D86: T.P | E86: 8750 | F86: 10464.75387 | G86: 53662.70774 | H86: 179870.689 | J86: 50 | K86: 0.01 | L86: 0.0529 | M86: 0.088
C87: 79 | D87: S.L | E87: 8700 | F87: 10360.10633 | G87: 50743.45644 | H87: 164042.0684 | J87: 50 | K87: 0.01 | L87: 0.0544 | M87: 0.088
C88: 80 | D88: S.L | E88: 8650 | F88: 10256.50527 | G88: 48185.98623 | H88: 150590.6188 | J88: 50 | K88: 0.01 | L88: 0.0504 | M88: 0.082
C89: 81 | D89: S.L | E89: 8600 | F89: 10153.94022 | G89: 45921.24488 | H89: 139446.913 | J89: 50 | K89: 0.01 | L89: 0.047 | M89: 0.074
C90: 82 | D90: S.L | E90: 8550 | F90: 10052.40082 | G90: 43900.7101 | H90: 129964.5229 | J90: 50 | K90: 0.01 | L90: 0.044 | M90: 0.068
C91: 83 | D91: S.L | E91: 8500 | F91: 9951.876807 | G91: 42087.61078 | H91: 121906.7225 | J91: 50 | K91: 0.01 | L91: 0.0413 | M91: 0.062
C92: 84 | D92: S.L | E92: 8450 | F92: 9852.358039 | G92: 40450.40272 | H92: 114836.1326 | J92: 50 | K92: 0.01 | L92: 0.0389 | M92: 0.058
C93: 85 | D93: S.L | E93: 8400 | F93: 9753.834459 | G93: 38961.8279 | H93: 108634.9814 | J93: 50 | K93: 0.01 | L93: 0.0368 | M93: 0.054
C94: 86 | D94: S.L | E94: 8350 | F94: 9656.296114 | G94: 37605.95629 | H94: 102985.9624 | J94: 50 | K94: 0.01 | L94: 0.0348 | M94: 0.052
C95: 87 | D95: T.P | E95: 8450 | F95: 9849.422036 | G95: 40087.9494 | H95: 112872.6148 | J95: 50 | K95: 0.01 | L95: 0.033 | M95: 0.048
C96: 88 | D96: S.L | E96: 8400 | F96: 9750.927816 | G96: 38708.92394 | H96: 107003.2388 | J96: 50 | K96: 0.01 | L96: 0.0344 | M96: 0.052
C97: 89 | D97: S.L | E97: 8350 | F97: 9653.418538 | G97: 37447.01302 | H97: 101867.0834 | J97: 50 | K97: 0.01 | L97: 0.0326 | M97: 0.048
C98: 90 | D98: T.P | E98: 8450 | F98: 9846.486909 | G98: 39776.21723 | H98: 111238.855 | J98: 50 | K98: 0.01 | L98: 0.0311 | M98: 0.046
C99: 91 | D99: S.L | E99: 8400 | F99: 9748.02204 | G99: 38491.44542 | H99: 105899.39 | J99: 50 | K99: 0.01 | L99: 0.0323 | M99: 0.048
C100: 92 | D100: T.P | E100: 8500 | F100: 9942.98248 | G100: 40862.51845 | H100: 115642.1339 | J100: 50 | K100: 0.01 | L100: 0.0308 | M100: 0.046
C101: 93 | D101: S.L | E101: 8450 | F101: 9843.552656 | G101: 39554.91786 | H101: 109860.0272 | J101: 50 | K101: 0.01 | L101: 0.032 | M101: 0.05
C102: 94 | D102: S.L | E102: 8400 | F102: 9745.117129 | G102: 38348.49287 | H102: 104806.4659 | J102: 50 | K102: 0.01 | L102: 0.0305 | M102: 0.046
C103: 95 | D103: T.P | E103: 8500 | F103: 9940.019472 | G103: 40580.37515 | H103: 114029.4349 | J103: 50 | K103: 0.01 | L103: 0.0291 | M103: 0.044
C104: 96 | D104: T.P | E104: 8600 | F104: 10138.81986 | G104: 43039.54589 | H104: 124976.2607 | J104: 50 | K104: 0.01 | L104: 0.0303 | M104: 0.048
C105: 97 | D105: T.P | E105: 8700 | F105: 10341.59626 | G105: 45751.03728 | H105: 137473.8867 | J105: 50 | K105: 0.01 | L105: 0.0315 | M105: 0.05
C106: 98 | D106: S.L | E106: 8650 | F106: 10238.1803 | G106: 44254.97836 | H106: 130050.2968 | J106: 50 | K106: 0.01 | L106: 0.0327 | M106: 0.054
C107: 99 | D107: S.L | E107: 8600 | F107: 10135.79849 | G107: 42874.22303 | H107: 123547.782 | J107: 50 | K107: 0.01 | L107: 0.0312 | M107: 0.05
C108: 100 | D108: S.L | E108: =IF(D108="T.P",E107+(J108*$H$2),E107-(J108)) -> 8550 | F108: 10034.44051 | G108: 41596.57119 | H108: 117864.584 | J108: 50 | K108: 0.01 | L108: 0.0298 | M108: 0.046
